Departmental Area,Entity,Payment Date,Expense type,Expense Area,Supplier Name,Payment Reference, Invoice Distribution Amount ,Description,Supplier Type,Expenditure Type
UK Statistics Family,Office for National Statistics,01/11/2021,Exp - Purchase Of Goods/Services - Contractors,2023 CENSUS DATA TRANSFORMATION,La International,213351,"12,777.99",Information Management Services,SME,Programme Expenditure
UK Statistics Family,Office for National Statistics,01/11/2021,Exp - Purchase Of Goods/Services - Contractors,Testing,La International,213351,"20,600.86",Information Management Services,SME,Programme Expenditure
UK Statistics Family,Office for National Statistics,01/11/2021,Exp - Purchase Of Goods/Services - Contractors,Testing,La International,213351,"3,817.65",Information Management Services,SME,Programme Expenditure
UK Statistics Family,Office for National Statistics,01/11/2021,Exp - Purchase Of Goods/Services - Contractors,Sustainability And Inequalities,La International,213351,"2,525.52",Information Management Services,SME,Programme Expenditure
UK Statistics Family,Office for National Statistics,01/11/2021,Exp - Purchase Of Goods/Services - Contractors,Data Architecture,La International,213351,"17,685.30",Information Management Services,SME,Programme Expenditure
UK Statistics Family,Office for National Statistics,01/11/2021,Exp - Purchase Of Goods/Services - Contractors,Data Architecture,La International,213351,"5,286.34",Information Management Services,SME,Programme Expenditure
UK Statistics Family,Office for National Statistics,01/11/2021,Exp - Purchase Of Goods/Services - Contractors,CLOUD ARCHITECTURE,La International,213351,"3,844.62",Information Management Services,SME,Programme Expenditure
UK Statistics Family,Office for National Statistics,01/11/2021,Exp - Purchase Of Goods/Services - Contractors,Tech Delivery Legacy Sp,La International,213351,"10,572.66",Information Management Services,SME,Programme Expenditure
UK Statistics Family,Office for National Statistics,01/11/2021,Exp - Purchase Of Goods/Services - Contractors,Data As A Service,La International,213351,"8,009.64",Information Management Services,SME,Programme Expenditure
UK Statistics Family,Office for National Statistics,01/11/2021,"ICT Outsourcing, Maintenance And Support",Finance,Cgi It UK Limited (Formerly Logica UK Limited),213353,"26,261.70",Third Party Payroll Provision,Large,Programme Expenditure
UK Statistics Family,Office for National Statistics,01/11/2021,Exp - Purchase Of Goods And Services Consultants,Consultancy Management,Deloitte,213354,"26,941.20",Consultancy,Large,Programme Expenditure
UK Statistics Family,Office for National Statistics,01/11/2021,EXP - PURCHASE OF GOODS/SERVICES -  NON IT CONTRACTUAL PAYMENTS,Covid Infection Survey,HH Associates Ltd,213360,"37,574.76",Print and Post Services,SME,Programme Expenditure
UK Statistics Family,Office for National Statistics,01/11/2021,Exp - Purchase Of Goods/Services - Contractors,Business Architecture,LA FOSSE ASSOCIATES LIMITED,213364,"20,880.00",Information Management Services,Large,Programme Expenditure
UK Statistics Family,Office for National Statistics,01/11/2021,Exp - Purchase Of Goods/Services - Contractors,INTEGRATED DATA STRATEGY AND DELIVERY,LA FOSSE ASSOCIATES LIMITED,213364,"2,070.00",Information Management Services,Large,Programme Expenditure
UK Statistics Family,Office for National Statistics,01/11/2021,Exp - Purchase Of Goods/Services - Contractors,INTEGRATED DATA STRATEGY AND DELIVERY,LA FOSSE ASSOCIATES LIMITED,213364,"23,805.00",Information Management Services,Large,Programme Expenditure
UK Statistics Family,Office for National Statistics,01/11/2021,Exp - Purchase Of Goods/Services - Contractors,Business Architecture,Parity Resources Limited,213367,"4,558.76",Information Management Services,Large,Programme Expenditure
UK Statistics Family,Office for National Statistics,01/11/2021,Exp - Short-Term Contract & Agency Staff - Full Cost,Census CCS Data Collection,Parity Resources Limited,213367,743.4,Information Management Services,Large,Programme Expenditure
UK Statistics Family,Office for National Statistics,01/11/2021,Exp - Purchase Of Goods/Services - Contractors,Programme Delivery,Parity Resources Limited,213367,"3,310.50",Information Management Services,Large,Programme Expenditure
UK Statistics Family,Office for National Statistics,01/11/2021,Exp - Purchase Of Goods/Services - Contractors,Covid Infection Survey,Parity Resources Limited,213367,"1,800.00",Information Management Services,Large,Programme Expenditure
UK Statistics Family,Office for National Statistics,01/11/2021,Exp - Purchase Of Goods/Services - Contractors,Covid Infection Survey,Parity Resources Limited,213367,"2,993.80",Information Management Services,Large,Programme Expenditure
UK Statistics Family,Office for National Statistics,01/11/2021,Exp - Purchase Of Goods/Services - Contractors,Policy and Design,Parity Resources Limited,213367,"3,600.00",Information Management Services,Large,Programme Expenditure
UK Statistics Family,Office for National Statistics,01/11/2021,Exp - Purchase Of Goods/Services - Contractors,Digital Publishing,Parity Resources Limited,213367,"3,550.50",Information Management Services,Large,Programme Expenditure
UK Statistics Family,Office for National Statistics,01/11/2021,Exp - Short-Term Contract & Agency Staff - Full Cost,Recruitment ,Parity Resources Limited,213367,439.56,Information Management Services,Large,Programme Expenditure
UK Statistics Family,Office for National Statistics,01/11/2021,Exp - Short-Term Contract & Agency Staff - Full Cost,Recruitment ,Parity Resources Limited,213367,732.6,Information Management Services,Large,Programme Expenditure
UK Statistics Family,Office for National Statistics,01/11/2021,Exp - Short-Term Contract & Agency Staff - Full Cost,Data Architecture,Parity Resources Limited,213367,"2,148.30",Information Management Services,Large,Programme Expenditure
UK Statistics Family,Office for National Statistics,01/11/2021,Exp - Purchase Of Goods/Services - Contractors,Data Architecture,Parity Resources Limited,213367,"3,233.30",Information Management Services,Large,Programme Expenditure
UK Statistics Family,Office for National Statistics,01/11/2021,Exp - Purchase Of Goods/Services - Contractors,Strategy And Architecture,Parity Resources Limited,213367,"4,510.50",Information Management Services,Large,Programme Expenditure
UK Statistics Family,Office for National Statistics,01/11/2021,Exp - Purchase Of Goods/Services - Contractors,IT Applications,Parity Resources Limited,213367,"3,910.50",Information Management Services,Large,Programme Expenditure
UK Statistics Family,Office for National Statistics,01/11/2021,Exp - Purchase Of Goods/Services - Contractors,IT Operations,Parity Resources Limited,213367,"8,421.00",Information Management Services,Large,Programme Expenditure
UK Statistics Family,Office for National Statistics,01/11/2021,Exp - Purchase Of Goods/Services - Contractors,Digital Delivery,Parity Resources Limited,213367,"7,740.00",Information Management Services,Large,Programme Expenditure
UK Statistics Family,Office for National Statistics,02/11/2021,Plant & Machinery At Cost - Additions,Divisional Strategy And Support,Pitney Bowes Ltd,213581,"34,854.00",Leasing of Equipment,Large,Programme Expenditure
UK Statistics Family,Office for National Statistics,02/11/2021,Plant & Machinery At Cost - Additions,Survey Processing Centre,Pitney Bowes Ltd,213581,"4,734.00",Leasing of Equipment,Large,Programme Expenditure
UK Statistics Family,Office for National Statistics,02/11/2021,Non IT Maintenance And Hire,Survey Processing Centre,Pitney Bowes Ltd,213581,"3,116.40",Leasing of Equipment,Large,Programme Expenditure
UK Statistics Family,Office for National Statistics,02/11/2021,Exp - Purchase Of Goods/Services - Contractors,Security Advisory,Certes Computing Ltd,213584,"19,774.73",Information Management Services,SME,Programme Expenditure
UK Statistics Family,Office for National Statistics,02/11/2021,Exp - Purchase Of Goods/Services - Contractors,Census & Soc Methodology Dd,Certes Computing Ltd,213584,"2,879.57",Information Management Services,SME,Programme Expenditure
UK Statistics Family,Office for National Statistics,02/11/2021,Exp - Purchase Of Goods/Services - Contractors,Data Architecture,Certes Computing Ltd,213584,"2,879.71",Information Management Services,SME,Programme Expenditure
UK Statistics Family,Office for National Statistics,02/11/2021,Exp - Purchase Of Goods And Services Consultants,Productivity Research And Professional Development,Frontier Economics,213601,"54,900.00",Consultancy,SME,Programme Expenditure
UK Statistics Family,Office for National Statistics,03/11/2021,Exp - Purchase Of Goods/Services - Contractors,Commercial Services,Certes Computing Ltd,213614,"16,011.90",Information Management Services,SME,Programme Expenditure
UK Statistics Family,Office for National Statistics,03/11/2021,Exp - Purchase Of Goods/Services - Contractors,Security Advisory,Certes Computing Ltd,213614,"24,018.90",Information Management Services,SME,Programme Expenditure
UK Statistics Family,Office for National Statistics,03/11/2021,Exp - Purchase Of Goods/Services - Contractors,Strategy And Architecture,Certes Computing Ltd,213614,"3,074.40",Information Management Services,SME,Programme Expenditure
UK Statistics Family,Office for National Statistics,03/11/2021,Exp - Purchase Of Goods/Services - Contractors,Digital Delivery,Certes Computing Ltd,213614,"4,637.23",Information Management Services,SME,Programme Expenditure
UK Statistics Family,Office for National Statistics,03/11/2021,Exp - Purchase Of Goods/Services - Contractors,Data As A Service,Certes Computing Ltd,213614,"3,484.32",Information Management Services,SME,Programme Expenditure
UK Statistics Family,Office for National Statistics,03/11/2021,Exp - Purchase Of Goods/Services - IT Contractual Services,CLOUD ARCHITECTURE,CTS (Cloud Technology Solutions Ltd),213622,"81,000.00",DST Infrastructure Preparation,Large,Programme Expenditure
UK Statistics Family,Office for National Statistics,03/11/2021,Surveys,Prices Division,Kantar UK Ltd,213625,"205,897.00",Statistical Services,Large,Programme Expenditure
UK Statistics Family,Office for National Statistics,03/11/2021,Exp - Purchase Of Goods/Services - IT Contractual Services,Digital Delivery,Methods Business & Digital Technology Ltd,213628,"42,090.00",Information Management Services,Large,Programme Expenditure
UK Statistics Family,Office for National Statistics,03/11/2021,Exp - Purchase Of Goods/Services - IT Contractual Services,Digital Delivery,Armakuni Ltd,213633,"26,400.00",Information Management Services,SME,Programme Expenditure
UK Statistics Family,Office for National Statistics,03/11/2021,End User Software And Hardware,IT Operations,Matrix Booking Limited,213636,"60,714.00",Software Licenses,SME,Programme Expenditure
UK Statistics Family,Office for National Statistics,03/11/2021,Exp - Purchase Of Goods/Services - Contractors,Business Architecture,Parity Resources Limited,213637,"4,198.76",Information Management Services,Large,Programme Expenditure
UK Statistics Family,Office for National Statistics,03/11/2021,Exp - Short-Term Contract & Agency Staff - Full Cost,Census CCS Data Collection,Parity Resources Limited,213637,743.4,Information Management Services,Large,Programme Expenditure
UK Statistics Family,Office for National Statistics,03/11/2021,Exp - Purchase Of Goods/Services - Contractors,Programme Delivery,Parity Resources Limited,213637,"3,310.50",Information Management Services,Large,Programme Expenditure
UK Statistics Family,Office for National Statistics,03/11/2021,Exp - Purchase Of Goods/Services - Contractors,Covid Infection Survey,Parity Resources Limited,213637,"2,993.80",Information Management Services,Large,Programme Expenditure
UK Statistics Family,Office for National Statistics,03/11/2021,Exp - Purchase Of Goods/Services - Contractors,Digital Publishing,Parity Resources Limited,213637,"3,550.50",Information Management Services,Large,Programme Expenditure
UK Statistics Family,Office for National Statistics,03/11/2021,Exp - Short-Term Contract & Agency Staff - Full Cost,Business Architecture Transformation And Statistical Strategy,Parity Resources Limited,213637,"6,621.00",Information Management Services,Large,Programme Expenditure
UK Statistics Family,Office for National Statistics,03/11/2021,Exp - Short-Term Contract & Agency Staff - Full Cost,Business Architecture Transformation And Statistical Strategy,Parity Resources Limited,213637,"1,616.16",Information Management Services,Large,Programme Expenditure
UK Statistics Family,Office for National Statistics,03/11/2021,Exp - Short-Term Contract & Agency Staff - Full Cost,Recruitment ,Parity Resources Limited,213637,732.6,Information Management Services,Large,Programme Expenditure
UK Statistics Family,Office for National Statistics,03/11/2021,Exp - Short-Term Contract & Agency Staff - Full Cost,Recruitment ,Parity Resources Limited,213637,732.6,Information Management Services,Large,Programme Expenditure
UK Statistics Family,Office for National Statistics,03/11/2021,Exp - Short-Term Contract & Agency Staff - Full Cost,Data Architecture,Parity Resources Limited,213637,"2,197.80",Information Management Services,Large,Programme Expenditure
UK Statistics Family,Office for National Statistics,03/11/2021,Exp - Purchase Of Goods/Services - Contractors,IT Applications,Parity Resources Limited,213637,"3,910.50",Information Management Services,Large,Programme Expenditure
UK Statistics Family,Office for National Statistics,04/11/2021,Exp - Short-Term Contract & Agency Staff - Full Cost,Census CCS Data Collection,Parity Resources Limited,213809,"2,473.08",Information Management Services,Large,Programme Expenditure
UK Statistics Family,Office for National Statistics,04/11/2021,Exp - Purchase Of Goods/Services - Contractors,Data Architecture,Parity Resources Limited,213809,"34,987.56",Information Management Services,Large,Programme Expenditure
UK Statistics Family,Office for National Statistics,04/11/2021,Surveys,Social Surveys Division,Natcen Social Research,213813,"14,940.74",Survey Response Incentive Vouchers,Large,Programme Expenditure
UK Statistics Family,Office for National Statistics,04/11/2021,Exp - Purchase Of Goods/Services - Incentive Payments,Social Surveys Division,Natcen Social Research,213813,"28,264.92",Survey Response Incentive Vouchers,Large,Programme Expenditure
UK Statistics Family,Office for National Statistics,04/11/2021,Exp - Purchase Of Goods/Services - Incentive Payments,Survey Management,Park Retail Ltd,213814,"15,912.80",Survey Response Incentive Vouchers,Large,Programme Expenditure
UK Statistics Family,Office for National Statistics,04/11/2021,Exp - Purchase Of Goods/Services - Incentive Payments,Survey Management,Park Retail Ltd,213814,"38,625.25",Survey Response Incentive Vouchers,Large,Programme Expenditure
UK Statistics Family,Office for National Statistics,04/11/2021,Exp - Purchase Of Goods/Services - Incentive Payments,Survey Management,Park Retail Ltd,213814,"9,935.93",Survey Response Incentive Vouchers,Large,Programme Expenditure
UK Statistics Family,Office for National Statistics,04/11/2021,Exp - Purchase Of Goods/Services - Incentive Payments,Survey Management,Park Retail Ltd,213814,"3,369.82",Survey Response Incentive Vouchers,Large,Programme Expenditure
UK Statistics Family,Office for National Statistics,04/11/2021,Exp - Purchase Of Goods/Services - Incentive Payments,Survey Management,Park Retail Ltd,213814,"6,428.77",Survey Response Incentive Vouchers,Large,Programme Expenditure
UK Statistics Family,Office for National Statistics,04/11/2021,Postage,Survey Processing Centre,DHL Parcel Ltd,213818,"27,269.97",Postage,Large,Programme Expenditure
UK Statistics Family,Office for National Statistics,04/11/2021,Exp - Purchase Of Goods/Services - Contractors,Business Architecture,La International,213821,"9,227.05",Information Management Services,SME,Programme Expenditure
UK Statistics Family,Office for National Statistics,04/11/2021,Exp - Purchase Of Goods/Services - Contractors,Business Architecture,La International,213821,"7,176.60",Information Management Services,SME,Programme Expenditure
UK Statistics Family,Office for National Statistics,04/11/2021,Exp - Purchase Of Goods/Services - Contractors,Testing,La International,213821,"8,862.36",Information Management Services,SME,Programme Expenditure
UK Statistics Family,Office for National Statistics,04/11/2021,Exp - Purchase Of Goods/Services - Contractors,Business Architecture,Malikshaw Interim & Executive,213826,"1,251.98",Information Management Services,SME,Programme Expenditure
UK Statistics Family,Office for National Statistics,04/11/2021,Exp - Purchase Of Goods/Services - Contractors,Testing,Malikshaw Interim & Executive,213826,"14,994.00",Information Management Services,SME,Programme Expenditure
UK Statistics Family,Office for National Statistics,04/11/2021,Exp - Purchase Of Goods/Services - Contractors,Programme Delivery,Malikshaw Interim & Executive,213826,"14,580.00",Information Management Services,SME,Programme Expenditure
UK Statistics Family,Office for National Statistics,04/11/2021,Exp - Purchase Of Goods/Services - Contractors,Consultancy Management,Malikshaw Interim & Executive,213826,687.58,Information Management Services,SME,Programme Expenditure
UK Statistics Family,Office for National Statistics,04/11/2021,Exp - Short-Term Contract & Agency Staff - Full Cost,Covid Infection Survey,Malikshaw Interim & Executive,213826,"2,972.01",Information Management Services,SME,Programme Expenditure
UK Statistics Family,Office for National Statistics,04/11/2021,Exp - Short-Term Contract & Agency Staff - Full Cost,Strategy And Engagement,Malikshaw Interim & Executive,213826,"1,093.57",Information Management Services,SME,Programme Expenditure
UK Statistics Family,Office for National Statistics,04/11/2021,Exp - Purchase Of Goods/Services - Contractors,ANALYTICAL ENGAGEMENT AND IMPACT,Malikshaw Interim & Executive,213826,"3,600.00",Information Management Services,SME,Programme Expenditure
UK Statistics Family,Office for National Statistics,04/11/2021,Exp - Short-Term Contract & Agency Staff - Full Cost,Data Architecture,Malikshaw Interim & Executive,213826,"60,379.84",Information Management Services,SME,Programme Expenditure
UK Statistics Family,Office for National Statistics,04/11/2021,Exp - Purchase Of Goods/Services - Contractors,Data Architecture,Malikshaw Interim & Executive,213826,"25,473.61",Information Management Services,SME,Programme Expenditure
UK Statistics Family,Office for National Statistics,04/11/2021,Exp - Purchase Of Goods/Services - Contractors,Data Science Campus,Malikshaw Interim & Executive,213826,"14,565.60",Information Management Services,SME,Programme Expenditure
UK Statistics Family,Office for National Statistics,04/11/2021,Exp - Purchase Of Goods/Services - Contractors,Data As A Service,Malikshaw Interim & Executive,213826,"18,975.60",Information Management Services,SME,Programme Expenditure
UK Statistics Family,Office for National Statistics,04/11/2021,Exp - Purchase Of Goods/Services - Contractors,Data As A Service,Malikshaw Interim & Executive,213826,"14,439.10",Information Management Services,SME,Programme Expenditure
UK Statistics Family,Office for National Statistics,04/11/2021,EXP - PURCHASE OF GOODS/SERVICES -  NON IT CONTRACTUAL PAYMENTS,Data Collection Service,Leidos Innovations UK Limited,213828,"855,940.21",Questionnaire Management,Large,Programme Expenditure
UK Statistics Family,Office for National Statistics,04/11/2021,Hosting,IT Operations,Amazon Web Services Inc,213832,"57,234.91",Information Management Services,Large,Programme Expenditure
UK Statistics Family,Office for National Statistics,04/11/2021,Exp - Purchase Of Goods/Services - Contractors,Business Architecture,LA FOSSE ASSOCIATES LIMITED,213835,"19,528.00",Information Management Services,Large,Programme Expenditure
UK Statistics Family,Office for National Statistics,04/11/2021,Exp - Purchase Of Goods/Services - Contractors,Business Architecture,LA FOSSE ASSOCIATES LIMITED,213835,"7,250.00",Information Management Services,Large,Programme Expenditure
UK Statistics Family,Office for National Statistics,04/11/2021,Exp - Purchase Of Goods/Services - Contractors,Researcher Support And Data Access ,LA FOSSE ASSOCIATES LIMITED,213835,630,Information Management Services,Large,Programme Expenditure
UK Statistics Family,Office for National Statistics,04/11/2021,Exp - Purchase Of Goods/Services - Contractors,INTEGRATED DATA STRATEGY AND DELIVERY,LA FOSSE ASSOCIATES LIMITED,213835,"16,560.00",Information Management Services,Large,Programme Expenditure
UK Statistics Family,Office for National Statistics,04/11/2021,Exp - Purchase Of Goods/Services - Contractors,INTEGRATED DATA STRATEGY AND DELIVERY,LA FOSSE ASSOCIATES LIMITED,213835,720,Information Management Services,Large,Programme Expenditure
UK Statistics Family,Office for National Statistics,04/11/2021,Exp - Purchase Of Goods/Services - Contractors,BUSINESS STRATEGY PERFORMANCE AND PMO,LA FOSSE ASSOCIATES LIMITED,213835,"24,300.00",Information Management Services,Large,Programme Expenditure
UK Statistics Family,Office for National Statistics,04/11/2021,Exp - Purchase Of Goods/Services - Contractors,Digital Delivery,LA FOSSE ASSOCIATES LIMITED,213835,"13,680.00",Information Management Services,Large,Programme Expenditure
UK Statistics Family,Office for National Statistics,05/11/2021,Surveys,International Trade And Transactions,Mango Solutions,213840,"14,688.00",Information Management Services,SME,Programme Expenditure
UK Statistics Family,Office for National Statistics,05/11/2021,Surveys,International Trade And Transactions,Mango Solutions,213840,"30,192.00",Information Management Services,SME,Programme Expenditure
UK Statistics Family,Office for National Statistics,05/11/2021,Exp - Purchase Of Goods/Services - IT Contractual Services,Digital Publishing,Swirrl It Ltd,213841,"71,640.00",Information Management Services,SME,Programme Expenditure
UK Statistics Family,Office for National Statistics,05/11/2021,End User Software And Hardware,IT Operations,Phoenix Software Ltd,213843,"390,997.50",Software Licenses,SME,Programme Expenditure
UK Statistics Family,Office for National Statistics,05/11/2021,Exp - Purchase Of Goods/Services - Contractors,Tech Delivery Data As A Platform,La International,213846,"7,186.80",Information Management Services,SME,Programme Expenditure
UK Statistics Family,Office for National Statistics,05/11/2021,Exp - Purchase Of Goods/Services - Contractors,IT Applications,La International,213846,"24,182.26",Information Management Services,SME,Programme Expenditure
UK Statistics Family,Office for National Statistics,05/11/2021,Exp - Purchase Of Goods/Services - Contractors,Business Architecture,Talent International,213854,"21,086.20",Information Management Services,SME,Programme Expenditure
UK Statistics Family,Office for National Statistics,05/11/2021,Exp - Short-Term Contract & Agency Staff - Full Cost,Census CCS Data Collection,Talent International,213854,"4,004.88",Information Management Services,SME,Programme Expenditure
UK Statistics Family,Office for National Statistics,05/11/2021,Exp - Purchase Of Goods/Services - Contractors,Covid Infection Survey,Talent International,213854,"16,250.00",Information Management Services,SME,Programme Expenditure
UK Statistics Family,Office for National Statistics,05/11/2021,Exp - Purchase Of Goods/Services - Contractors,Digital Publishing,Talent International,213854,"17,970.00",Information Management Services,SME,Programme Expenditure
UK Statistics Family,Office for National Statistics,05/11/2021,Exp - Short-Term Contract & Agency Staff - Full Cost,Strategy And Engagement,Talent International,213854,"14,095.78",Information Management Services,SME,Programme Expenditure
UK Statistics Family,Office for National Statistics,05/11/2021,Exp - Purchase Of Goods/Services - Contractors,Finance,Talent International,213854,"2,640.00",Information Management Services,SME,Programme Expenditure
UK Statistics Family,Office for National Statistics,05/11/2021,Exp - Short-Term Contract & Agency Staff - Full Cost,Data Architecture,Talent International,213854,"33,996.25",Information Management Services,SME,Programme Expenditure
UK Statistics Family,Office for National Statistics,05/11/2021,Exp - Purchase Of Goods/Services - Contractors,Data Architecture,Talent International,213854,"20,160.00",Information Management Services,SME,Programme Expenditure
UK Statistics Family,Office for National Statistics,05/11/2021,Exp - Purchase Of Goods/Services - Contractors,Data Architecture,Talent International,213854,"77,094.00",Information Management Services,SME,Programme Expenditure
UK Statistics Family,Office for National Statistics,05/11/2021,Exp - Purchase Of Goods/Services - Contractors,CDIO UNGP,Talent International,213854,"20,550.00",Information Management Services,SME,Programme Expenditure
UK Statistics Family,Office for National Statistics,05/11/2021,Exp - Purchase Of Goods/Services - Contractors,Strategy And Architecture,Talent International,213854,"19,500.00",Information Management Services,SME,Programme Expenditure
UK Statistics Family,Office for National Statistics,05/11/2021,Exp - Purchase Of Goods/Services - Contractors,Tech Delivery Legacy Sp,Talent International,213854,"36,758.40",Information Management Services,SME,Programme Expenditure
UK Statistics Family,Office for National Statistics,05/11/2021,Exp - Purchase Of Goods/Services - IT Contractual Services,Tech Delivery Legacy Sp,Talent International,213854,"17,999.70",Information Management Services,SME,Programme Expenditure
UK Statistics Family,Office for National Statistics,05/11/2021,Exp - Purchase Of Goods/Services - Contractors,Digital Delivery,Talent International,213854,"17,251.20",Information Management Services,SME,Programme Expenditure
UK Statistics Family,Office for National Statistics,05/11/2021,Exp - Purchase Of Goods/Services - Contractors,Digital Delivery,Talent International,213854,"14,817.60",Information Management Services,SME,Programme Expenditure
UK Statistics Family,Office for National Statistics,05/11/2021,Exp - Purchase Of Goods/Services - Contractors,Data Science Campus,Talent International,213854,"11,730.00",Information Management Services,SME,Programme Expenditure
UK Statistics Family,Office for National Statistics,05/11/2021,Exp - Purchase Of Goods/Services - Contractors,Data As A Service,Talent International,213854,"18,900.00",Information Management Services,SME,Programme Expenditure
UK Statistics Family,Office for National Statistics,05/11/2021,Exp - Purchase Of Goods/Services - Contractors,Data As A Service,Talent International,213854,"3,120.00",Information Management Services,SME,Programme Expenditure
UK Statistics Family,Office for National Statistics,05/11/2021,Exp - Short-Term Contract & Agency Staff - Full Cost,Social Survey Transformation Titchfield,Talent International,213854,"5,661.00",Information Management Services,SME,Programme Expenditure
UK Statistics Family,Office for National Statistics,05/11/2021,Exp - Purchase Of Goods/Services - Contractors,Business Architecture,LA FOSSE ASSOCIATES LIMITED,213855,"82,693.00",Information Management Services,Large,Programme Expenditure
UK Statistics Family,Office for National Statistics,05/11/2021,Exp - Purchase Of Goods/Services - Contractors,Business Architecture,LA FOSSE ASSOCIATES LIMITED,213855,"14,400.00",Information Management Services,Large,Programme Expenditure
UK Statistics Family,Office for National Statistics,05/11/2021,Exp - Purchase Of Goods/Services - Contractors,Business Architecture,LA FOSSE ASSOCIATES LIMITED,213855,"9,900.00",Information Management Services,Large,Programme Expenditure
UK Statistics Family,Office for National Statistics,05/11/2021,Exp - Purchase Of Goods/Services - Contractors,Testing,LA FOSSE ASSOCIATES LIMITED,213855,"9,800.00",Information Management Services,Large,Programme Expenditure
UK Statistics Family,Office for National Statistics,05/11/2021,Exp - Purchase Of Goods/Services - Contractors,Consultancy Management,LA FOSSE ASSOCIATES LIMITED,213855,"12,600.00",Information Management Services,Large,Programme Expenditure
UK Statistics Family,Office for National Statistics,05/11/2021,Exp - Purchase Of Goods/Services - Contractors,Consultancy Management,LA FOSSE ASSOCIATES LIMITED,213855,"12,959.78",Information Management Services,Large,Programme Expenditure
UK Statistics Family,Office for National Statistics,05/11/2021,Exp - Purchase Of Goods/Services - Contractors,WIDER SURVEILLANCE STUDIES,LA FOSSE ASSOCIATES LIMITED,213855,"12,000.00",Information Management Services,Large,Programme Expenditure
UK Statistics Family,Office for National Statistics,05/11/2021,Exp - Purchase Of Goods/Services - Contractors,Data Architecture,LA FOSSE ASSOCIATES LIMITED,213855,"13,455.00",Information Management Services,Large,Programme Expenditure
UK Statistics Family,Office for National Statistics,05/11/2021,Exp - Purchase Of Goods/Services - Contractors,CLOUD ARCHITECTURE,LA FOSSE ASSOCIATES LIMITED,213855,"14,400.00",Information Management Services,Large,Programme Expenditure
UK Statistics Family,Office for National Statistics,05/11/2021,Exp - Purchase Of Goods/Services - Contractors,Tech Delivery Legacy Sp,LA FOSSE ASSOCIATES LIMITED,213855,"18,000.00",Information Management Services,Large,Programme Expenditure
UK Statistics Family,Office for National Statistics,09/11/2021,Training & Development,Portfolio Delivery,KPMG LLP,214138,"35,568.20",Training and Educational Services,SME,Programme Expenditure
UK Statistics Family,Office for National Statistics,09/11/2021,Exp - Purchase Of Goods/Services - Training & Development - Seminar & Conference Fees,Office Of Chief Data And Information,KPMG LLP,214138,"2,561.00",Training and Educational Services,SME,Programme Expenditure
UK Statistics Family,Office for National Statistics,09/11/2021,Exp - Purchase Of Goods/Services - Training & Development - Seminar & Conference Fees,Data As A Service,KPMG LLP,214138,"1,502.00",Training and Educational Services,SME,Programme Expenditure
UK Statistics Family,Office for National Statistics,09/11/2021,Exp - Purchase Of Goods/Services - Contractors,Business Architecture,Concept Information Technology Ltd T/A Concept Resourcing,214139,"18,742.42",Information Management Services,Large,Programme Expenditure
UK Statistics Family,Office for National Statistics,09/11/2021,Exp - Short-Term Contract & Agency Staff - Full Cost,Covid Infection Survey,Concept Information Technology Ltd T/A Concept Resourcing,214139,"4,144.10",Information Management Services,Large,Programme Expenditure
UK Statistics Family,Office for National Statistics,09/11/2021,Exp - Short-Term Contract & Agency Staff - Full Cost,Strategy And Engagement,Concept Information Technology Ltd T/A Concept Resourcing,214139,"3,088.91",Information Management Services,Large,Programme Expenditure
UK Statistics Family,Office for National Statistics,09/11/2021,Exp - Short-Term Contract & Agency Staff - Full Cost,Business Architecture Transformation And Statistical Strategy,Concept Information Technology Ltd T/A Concept Resourcing,214139,"3,241.97",Information Management Services,Large,Programme Expenditure
UK Statistics Family,Office for National Statistics,09/11/2021,Exp - Short-Term Contract & Agency Staff - Full Cost,Business Architecture Transformation And Statistical Strategy,Concept Information Technology Ltd T/A Concept Resourcing,214139,"16,113.60",Information Management Services,Large,Programme Expenditure
UK Statistics Family,Office for National Statistics,09/11/2021,Exp - Purchase Of Goods And Services Consultants,Business Architecture Transformation And Statistical Strategy,Concept Information Technology Ltd T/A Concept Resourcing,214139,"17,400.00",Information Management Services,Large,Programme Expenditure
UK Statistics Family,Office for National Statistics,09/11/2021,Exp - Short-Term Contract & Agency Staff - Full Cost,Data Architecture,Concept Information Technology Ltd T/A Concept Resourcing,214139,"3,637.39",Information Management Services,Large,Programme Expenditure
UK Statistics Family,Office for National Statistics,09/11/2021,Exp - Short-Term Contract & Agency Staff - Full Cost,Data Architecture,Concept Information Technology Ltd T/A Concept Resourcing,214139,"3,685.20",Information Management Services,Large,Programme Expenditure
UK Statistics Family,Office for National Statistics,09/11/2021,Exp - Purchase Of Goods/Services - IT Contractual Services,CDIO UNGP,Concept Information Technology Ltd T/A Concept Resourcing,214139,"18,000.00",Information Management Services,Large,Programme Expenditure
UK Statistics Family,Office for National Statistics,09/11/2021,Agency Staff Costs,Prices Division,Concept Information Technology Ltd T/A Concept Resourcing,214139,-4.36,Information Management Services,Large,Programme Expenditure
UK Statistics Family,Office for National Statistics,09/11/2021,Exp - Short-Term Contract & Agency Staff - Full Cost,Prices Division,Concept Information Technology Ltd T/A Concept Resourcing,214139,"3,763.70",Information Management Services,Large,Programme Expenditure
UK Statistics Family,Office for National Statistics,09/11/2021,Exp - Short-Term Contract & Agency Staff - Full Cost,Prices Division,Concept Information Technology Ltd T/A Concept Resourcing,214139,"4,530.38",Information Management Services,Large,Programme Expenditure
UK Statistics Family,Office for National Statistics,09/11/2021,Exp - Short-Term Contract & Agency Staff - Full Cost,Prices Division,Concept Information Technology Ltd T/A Concept Resourcing,214139,"9,267.52",Information Management Services,Large,Programme Expenditure
UK Statistics Family,Office for National Statistics,09/11/2021,Exp - Short-Term Contract & Agency Staff - Full Cost,Prices Division,Concept Information Technology Ltd T/A Concept Resourcing,214139,"22,240.26",Information Management Services,Large,Programme Expenditure
UK Statistics Family,Office for National Statistics,09/11/2021,Exp - Short-Term Contract & Agency Staff - Full Cost,Corporations,Concept Information Technology Ltd T/A Concept Resourcing,214139,"3,899.33",Information Management Services,Large,Programme Expenditure
UK Statistics Family,Office for National Statistics,09/11/2021,Exp - Short-Term Contract & Agency Staff - Full Cost,Business Outputs And Developments,Concept Information Technology Ltd T/A Concept Resourcing,214139,"4,736.33",Information Management Services,Large,Programme Expenditure
UK Statistics Family,Office for National Statistics,09/11/2021,Exp - Purchase Of Goods/Services - Contractors,Census & Soc Methodology Dd,Certes Computing Ltd,214144,"15,117.73",Information Management Services,SME,Programme Expenditure
UK Statistics Family,Office for National Statistics,09/11/2021,Exp - Purchase Of Goods/Services - Contractors,Strategy And Architecture,Certes Computing Ltd,214144,"16,140.60",Information Management Services,SME,Programme Expenditure
UK Statistics Family,Office for National Statistics,09/11/2021,Exp - Purchase Of Goods/Services - Contractors,Strategy And Architecture,Certes Computing Ltd,214144,"3,240.00",Information Management Services,SME,Programme Expenditure
UK Statistics Family,Office for National Statistics,09/11/2021,Exp - Purchase Of Goods/Services - Contractors,IT Operations,Certes Computing Ltd,214144,"17,010.00",Information Management Services,SME,Programme Expenditure
UK Statistics Family,Office for National Statistics,09/11/2021,Exp - Purchase Of Goods/Services - Contractors,Digital Delivery,Certes Computing Ltd,214144,"31,877.75",Information Management Services,SME,Programme Expenditure
UK Statistics Family,Office for National Statistics,09/11/2021,Exp - Purchase Of Goods/Services - Contractors,Business Architecture,La International,214145,"3,588.30",Information Management Services,SME,Programme Expenditure
UK Statistics Family,Office for National Statistics,09/11/2021,Exp - Purchase Of Goods/Services - Contractors,CLOUD ARCHITECTURE,La International,214145,"14,994.07",Information Management Services,SME,Programme Expenditure
UK Statistics Family,Office for National Statistics,09/11/2021,Exp - Purchase Of Goods/Services - Contractors,Tech Delivery Legacy Sp,La International,214145,"7,048.44",Information Management Services,SME,Programme Expenditure
UK Statistics Family,Office for National Statistics,09/11/2021,Exp - Purchase Of Goods/Services - Contractors,Tech Delivery Data As A Platform,La International,214145,"7,176.60",Information Management Services,SME,Programme Expenditure
UK Statistics Family,Office for National Statistics,09/11/2021,Exp - Purchase Of Goods/Services - Contractors,Tech Delivery Data As A Platform,La International,214145,"12,922.98",Information Management Services,SME,Programme Expenditure
UK Statistics Family,Office for National Statistics,09/11/2021,Exp - Purchase Of Goods/Services - Contractors,IT Applications,La International,214145,"2,883.48",Information Management Services,SME,Programme Expenditure
UK Statistics Family,Office for National Statistics,09/11/2021,Hospitality,Property Services,BaxterStorey,214147,"38,849.53",Catering Services,Large,Programme Expenditure
UK Statistics Family,Office for National Statistics,09/11/2021,Exp - Short-Term Contract & Agency Staff - Full Cost,Census CCS Data Collection,Malikshaw Interim & Executive,214148,153.79,Information Management Services,SME,Programme Expenditure
UK Statistics Family,Office for National Statistics,09/11/2021,Exp - Short-Term Contract & Agency Staff - Full Cost,Census CCS Data Collection,Malikshaw Interim & Executive,214148,"4,986.48",Information Management Services,SME,Programme Expenditure
UK Statistics Family,Office for National Statistics,09/11/2021,Exp - Short-Term Contract & Agency Staff - Full Cost,Census CCS Data Collection,Malikshaw Interim & Executive,214148,259.3,Information Management Services,SME,Programme Expenditure
UK Statistics Family,Office for National Statistics,09/11/2021,Exp - Short-Term Contract & Agency Staff - Full Cost,Census CCS Data Collection,Malikshaw Interim & Executive,214148,"3,152.76",Information Management Services,SME,Programme Expenditure
UK Statistics Family,Office for National Statistics,09/11/2021,Exp - Short-Term Contract & Agency Staff - Full Cost,Covid Infection Survey,Malikshaw Interim & Executive,214148,571.56,Information Management Services,SME,Programme Expenditure
UK Statistics Family,Office for National Statistics,09/11/2021,Exp - Short-Term Contract & Agency Staff - Full Cost,Strategy And Engagement,Malikshaw Interim & Executive,214148,78.76,Information Management Services,SME,Programme Expenditure
UK Statistics Family,Office for National Statistics,09/11/2021,Exp - Short-Term Contract & Agency Staff - Full Cost,Finance,Malikshaw Interim & Executive,214148,262.99,Information Management Services,SME,Programme Expenditure
UK Statistics Family,Office for National Statistics,09/11/2021,Exp - Short-Term Contract & Agency Staff - Full Cost,Recruitment ,Malikshaw Interim & Executive,214148,483.07,Information Management Services,SME,Programme Expenditure
UK Statistics Family,Office for National Statistics,09/11/2021,Exp - Short-Term Contract & Agency Staff - Full Cost,Data Architecture,Malikshaw Interim & Executive,214148,"3,871.78",Information Management Services,SME,Programme Expenditure
UK Statistics Family,Office for National Statistics,09/11/2021,Exp - Short-Term Contract & Agency Staff - Full Cost,Data Architecture,Malikshaw Interim & Executive,214148,403.22,Information Management Services,SME,Programme Expenditure
UK Statistics Family,Office for National Statistics,09/11/2021,Exp - Short-Term Contract & Agency Staff - Full Cost,Data Architecture,Malikshaw Interim & Executive,214148,748.14,Information Management Services,SME,Programme Expenditure
UK Statistics Family,Office for National Statistics,09/11/2021,Exp - Purchase Of Goods/Services - Contractors,Tech Delivery Legacy Sp,Malikshaw Interim & Executive,214148,"29,565.77",Information Management Services,SME,Programme Expenditure
UK Statistics Family,Office for National Statistics,09/11/2021,Exp - Short-Term Contract & Agency Staff - Full Cost,Interviewer Management TU,Malikshaw Interim & Executive,214148,265.74,Information Management Services,SME,Programme Expenditure
UK Statistics Family,Office for National Statistics,09/11/2021,Exp - Short-Term Contract & Agency Staff - Full Cost,Survey Management,Malikshaw Interim & Executive,214148,287.58,Information Management Services,SME,Programme Expenditure
UK Statistics Family,Office for National Statistics,09/11/2021,Exp - Short-Term Contract & Agency Staff - Full Cost,Social Survey Transformation Titchfield,Malikshaw Interim & Executive,214148,72.77,Information Management Services,SME,Programme Expenditure
UK Statistics Family,Office for National Statistics,09/11/2021,Exp - Short-Term Contract & Agency Staff - Full Cost,Social Surveys Division,Malikshaw Interim & Executive,214148,802.99,Information Management Services,SME,Programme Expenditure
UK Statistics Family,Office for National Statistics,09/11/2021,Exp - Short-Term Contract & Agency Staff - Full Cost,Divisional Management,Malikshaw Interim & Executive,214148,187.78,Information Management Services,SME,Programme Expenditure
UK Statistics Family,Office for National Statistics,09/11/2021,Exp - Short-Term Contract & Agency Staff - Full Cost,2023 CENSUS DATA TRANSFORMATION,Talent International,214154,"5,403.48",Information Management Services,SME,Programme Expenditure
UK Statistics Family,Office for National Statistics,09/11/2021,Exp - Short-Term Contract & Agency Staff - Full Cost,Census CCS Data Collection,Talent International,214154,"2,551.27",Information Management Services,SME,Programme Expenditure
UK Statistics Family,Office for National Statistics,09/11/2021,Exp - Short-Term Contract & Agency Staff - Full Cost,Census CCS Data Collection,Talent International,214154,231.71,Information Management Services,SME,Programme Expenditure
UK Statistics Family,Office for National Statistics,09/11/2021,Exp - Purchase Of Goods/Services - Contractors,INTEGRATED DATA STRATEGY AND DELIVERY,Talent International,214154,"33,120.00",Information Management Services,SME,Programme Expenditure
UK Statistics Family,Office for National Statistics,09/11/2021,Exp - Short-Term Contract & Agency Staff - Full Cost,Data Architecture,Talent International,214154,752.14,Information Management Services,SME,Programme Expenditure
UK Statistics Family,Office for National Statistics,09/11/2021,Exp - Short-Term Contract & Agency Staff - Full Cost,Data Architecture,Talent International,214154,"2,366.18",Information Management Services,SME,Programme Expenditure
UK Statistics Family,Office for National Statistics,09/11/2021,Exp - Purchase Of Goods/Services - Incentive Payments,Covid Infection Survey,Sodexo Motivation Solutions U.K. ltd,214155,24.83,Survey Response Incentive Vouchers,Large,Programme Expenditure
UK Statistics Family,Office for National Statistics,09/11/2021,Exp - Purchase Of Goods/Services - Incentive Payments,Strategy And Engagement,Sodexo Motivation Solutions U.K. ltd,214155,"3,256.77",Survey Response Incentive Vouchers,Large,Programme Expenditure
UK Statistics Family,Office for National Statistics,09/11/2021,Exp - Purchase Of Goods/Services - Incentive Payments,Survey Management,Sodexo Motivation Solutions U.K. ltd,214155,503.2,Survey Response Incentive Vouchers,Large,Programme Expenditure
UK Statistics Family,Office for National Statistics,09/11/2021,Exp - Purchase Of Goods/Services - Incentive Payments,Social Survey Transformation Newport,Sodexo Motivation Solutions U.K. ltd,214155,"103,935.37",Survey Response Incentive Vouchers,Large,Programme Expenditure
UK Statistics Family,Office for National Statistics,09/11/2021,Exp - Purchase Of Goods/Services - Contractors,Business Architecture,SmartSourcing Ltd,214157,"7,192.32",Information Management Services,SME,Programme Expenditure
UK Statistics Family,Office for National Statistics,09/11/2021,Exp - Purchase Of Goods/Services - Contractors,Business Architecture,SmartSourcing Ltd,214157,"17,621.18",Information Management Services,SME,Programme Expenditure
UK Statistics Family,Office for National Statistics,09/11/2021,Exp - Short-Term Contract & Agency Staff - Full Cost,Business Architecture Transformation And Statistical Strategy,SmartSourcing Ltd,214157,"21,573.96",Information Management Services,SME,Programme Expenditure
UK Statistics Family,Office for National Statistics,09/11/2021,Exp - Short-Term Contract & Agency Staff - Full Cost,Data Architecture,SmartSourcing Ltd,214157,732.6,Information Management Services,SME,Programme Expenditure
UK Statistics Family,Office for National Statistics,09/11/2021,Exp - Short-Term Contract & Agency Staff - Full Cost,Data Architecture,SmartSourcing Ltd,214157,"1,465.20",Information Management Services,SME,Programme Expenditure
UK Statistics Family,Office for National Statistics,09/11/2021,Exp - Purchase Of Goods/Services - Contractors,CDIO UNGP,SmartSourcing Ltd,214157,"7,492.32",Information Management Services,SME,Programme Expenditure
UK Statistics Family,Office for National Statistics,09/11/2021,Exp - Purchase Of Goods/Services - Contractors,Tech Delivery Legacy Sp,SmartSourcing Ltd,214157,"2,469.31",Information Management Services,SME,Programme Expenditure
UK Statistics Family,Office for National Statistics,09/11/2021,Exp - Purchase Of Goods/Services - Contractors,Tech Delivery Data As A Platform,SmartSourcing Ltd,214157,"3,600.00",Information Management Services,SME,Programme Expenditure
UK Statistics Family,Office for National Statistics,09/11/2021,Exp - Purchase Of Goods/Services - Contractors,IT Applications,SmartSourcing Ltd,214157,"3,596.16",Information Management Services,SME,Programme Expenditure
UK Statistics Family,Office for National Statistics,09/11/2021,Exp - Purchase Of Goods/Services - Contractors,IT Operations,SmartSourcing Ltd,214157,"16,560.05",Information Management Services,SME,Programme Expenditure
UK Statistics Family,Office for National Statistics,09/11/2021,Exp - Purchase Of Goods/Services - Contractors,Data As A Service,SmartSourcing Ltd,214157,"2,876.93",Information Management Services,SME,Programme Expenditure
UK Statistics Family,Office for National Statistics,09/11/2021,Exp - Purchase Of Goods/Services - Contractors,Data As A Service,SmartSourcing Ltd,214157,"15,103.87",Information Management Services,SME,Programme Expenditure
UK Statistics Family,Office for National Statistics,09/11/2021,Exp - Purchase Of Goods And Services Consultants,IT Operations,MSoft eSolutions Ltd,214163,"1,080.00",Software Licenses,Large,Programme Expenditure
UK Statistics Family,Office for National Statistics,09/11/2021,Exp - Purchase Of Goods/Services - IT Contractual Services,IT Operations,MSoft eSolutions Ltd,214163,"4,800.00",Software Licenses,Large,Programme Expenditure
UK Statistics Family,Office for National Statistics,09/11/2021,Specialist User Software And Hardware,IT Operations,MSoft eSolutions Ltd,214163,"31,536.00",Software Licenses,Large,Programme Expenditure
UK Statistics Family,Office for National Statistics,09/11/2021,Fixtures & Fittings At Cost - Additions,Property Newport,Orange box Limited,214168,"688,631.50",Office Furniture,SME,Programme Expenditure
UK Statistics Family,Office for National Statistics,09/11/2021,Fixtures & Fittings At Cost - Additions,Property Titchfield,Orange box Limited,214168,"316,430.05",Office Furniture,SME,Programme Expenditure
UK Statistics Family,Office for National Statistics,10/11/2021,Exp - Short-Term Contract & Agency Staff - Full Cost,Business Change Support,Concept Information Technology Ltd T/A Concept Resourcing,214171,"11,864.91",Information Management Services,Large,Programme Expenditure
UK Statistics Family,Office for National Statistics,10/11/2021,Exp - Short-Term Contract & Agency Staff - Full Cost,Business Change Support,Concept Information Technology Ltd T/A Concept Resourcing,214171,"5,148.18",Information Management Services,Large,Programme Expenditure
UK Statistics Family,Office for National Statistics,10/11/2021,Exp - Short-Term Contract & Agency Staff - Full Cost,Business Change Support,Concept Information Technology Ltd T/A Concept Resourcing,214171,"5,148.18",Information Management Services,Large,Programme Expenditure
UK Statistics Family,Office for National Statistics,10/11/2021,Exp - Short-Term Contract & Agency Staff - Full Cost,Business Change Support,Concept Information Technology Ltd T/A Concept Resourcing,214171,"12,386.22",Information Management Services,Large,Programme Expenditure
UK Statistics Family,Office for National Statistics,10/11/2021,Exp - Short-Term Contract & Agency Staff - Full Cost,Business Change Support,Concept Information Technology Ltd T/A Concept Resourcing,214171,"14,500.68",Information Management Services,Large,Programme Expenditure
UK Statistics Family,Office for National Statistics,10/11/2021,Exp - Short-Term Contract & Agency Staff - Full Cost,International Trade And Transactions,Concept Information Technology Ltd T/A Concept Resourcing,214171,"4,118.54",Information Management Services,Large,Programme Expenditure
UK Statistics Family,Office for National Statistics,10/11/2021,Exp - Short-Term Contract & Agency Staff - Full Cost,International Trade And Transactions,Concept Information Technology Ltd T/A Concept Resourcing,214171,"5,148.18",Information Management Services,Large,Programme Expenditure
UK Statistics Family,Office for National Statistics,10/11/2021,Exp - Short-Term Contract & Agency Staff - Full Cost,Public Sector And Households,Concept Information Technology Ltd T/A Concept Resourcing,214171,"3,912.34",Information Management Services,Large,Programme Expenditure
UK Statistics Family,Office for National Statistics,10/11/2021,Exp - Short-Term Contract & Agency Staff - Full Cost,Business Statistics Transformation,Concept Information Technology Ltd T/A Concept Resourcing,214171,"7,411.77",Information Management Services,Large,Programme Expenditure
UK Statistics Family,Office for National Statistics,10/11/2021,Exp - Purchase Of Goods/Services - Contractors,Social Survey Transformation Titchfield,Concept Information Technology Ltd T/A Concept Resourcing,214171,"13,428.00",Information Management Services,Large,Programme Expenditure
UK Statistics Family,Office for National Statistics,10/11/2021,Exp - Purchase Of Goods/Services - Contractors,Strategy And Architecture,Medley Business Solutions Ltd,214174,"11,404.80",Information Management Services,Large,Programme Expenditure
UK Statistics Family,Office for National Statistics,10/11/2021,Exp - Purchase Of Goods/Services - IT Contractual Services,Strategy And Architecture,Medley Business Solutions Ltd,214174,"18,057.60",Information Management Services,Large,Programme Expenditure
UK Statistics Family,Office for National Statistics,10/11/2021,Exp - Purchase Of Goods/Services - Contractors,Security Advisory,Certes Computing Ltd,214175,"20,816.40",Information Management Services,SME,Programme Expenditure
UK Statistics Family,Office for National Statistics,10/11/2021,Exp - Purchase Of Goods/Services - Contractors,Tech Delivery Legacy Sp,Certes Computing Ltd,214175,"14,123.09",Information Management Services,SME,Programme Expenditure
UK Statistics Family,Office for National Statistics,10/11/2021,Exp - Purchase Of Goods/Services - Contractors,Digital Delivery,Certes Computing Ltd,214175,"15,820.46",Information Management Services,SME,Programme Expenditure
UK Statistics Family,Office for National Statistics,10/11/2021,Exp - Purchase Of Goods/Services - Contractors,Data As A Service,Certes Computing Ltd,214175,"18,292.68",Information Management Services,SME,Programme Expenditure
UK Statistics Family,Office for National Statistics,10/11/2021,Exp - Purchase Of Goods/Services - Contractors,Business Architecture,La International,214176,"5,677.20",Information Management Services,SME,Programme Expenditure
UK Statistics Family,Office for National Statistics,10/11/2021,Exp - Purchase Of Goods/Services - Contractors,Business Architecture,La International,214176,"3,588.30",Information Management Services,SME,Programme Expenditure
UK Statistics Family,Office for National Statistics,10/11/2021,Exp - Purchase Of Goods/Services - Contractors,Testing,La International,214176,"8,490.24",Information Management Services,SME,Programme Expenditure
UK Statistics Family,Office for National Statistics,10/11/2021,Exp - Purchase Of Goods/Services - Contractors,Digital Publishing,La International,214176,"28,747.20",Information Management Services,SME,Programme Expenditure
UK Statistics Family,Office for National Statistics,10/11/2021,Exp - Purchase Of Goods/Services - Contractors,Security Operations,La International,214176,"3,203.88",Information Management Services,SME,Programme Expenditure
UK Statistics Family,Office for National Statistics,10/11/2021,Exp - Purchase Of Goods/Services - Contractors,ANALYTICAL ENGAGEMENT AND IMPACT,La International,214176,"3,450.00",Information Management Services,SME,Programme Expenditure
UK Statistics Family,Office for National Statistics,10/11/2021,Exp - Purchase Of Goods/Services - Contractors,Data Architecture,La International,214176,"10,636.80",Information Management Services,SME,Programme Expenditure
UK Statistics Family,Office for National Statistics,10/11/2021,Exp - Purchase Of Goods/Services - Contractors,CLOUD ARCHITECTURE,La International,214176,"53,824.86",Information Management Services,SME,Programme Expenditure
UK Statistics Family,Office for National Statistics,10/11/2021,Exp - Purchase Of Goods/Services - Contractors,Strategy And Architecture,La International,214176,"10,764.90",Information Management Services,SME,Programme Expenditure
UK Statistics Family,Office for National Statistics,10/11/2021,Exp - Purchase Of Goods/Services - Contractors,Tech Delivery Legacy Sp,La International,214176,"7,048.44",Information Management Services,SME,Programme Expenditure
UK Statistics Family,Office for National Statistics,10/11/2021,Exp - Purchase Of Goods/Services - Contractors,Tech Delivery Legacy Sp,La International,214176,"3,524.22",Information Management Services,SME,Programme Expenditure
UK Statistics Family,Office for National Statistics,10/11/2021,Exp - Purchase Of Goods/Services - Contractors,Tech Delivery Data As A Platform,La International,214176,"7,176.60",Information Management Services,SME,Programme Expenditure
UK Statistics Family,Office for National Statistics,10/11/2021,Exp - Purchase Of Goods/Services - Contractors,Tech Delivery Data As A Platform,La International,214176,"7,176.60",Information Management Services,SME,Programme Expenditure
UK Statistics Family,Office for National Statistics,10/11/2021,Exp - Purchase Of Goods/Services - Contractors,IT Applications,La International,214176,"14,929.32",Information Management Services,SME,Programme Expenditure
UK Statistics Family,Office for National Statistics,10/11/2021,Surveys,Crime Statistics,Kantar UK Ltd,214187,"699,440.70",Statistical Services,Large,Programme Expenditure
UK Statistics Family,Office for National Statistics,10/11/2021,Exp - Purchase Of Goods/Services - Contractors,International Trade And Transactions,Talent International,214190,"2,016.00",Information Management Services,SME,Programme Expenditure
UK Statistics Family,Office for National Statistics,10/11/2021,Exp - Purchase Of Goods/Services - Contractors,International Trade And Transactions,Talent International,214190,"10,332.00",Information Management Services,SME,Programme Expenditure
UK Statistics Family,Office for National Statistics,10/11/2021,Exp - Short-Term Contract & Agency Staff - Full Cost,STRATEGY SYNTHESIS AND CO-ORDINATION,Talent International,214190,"3,818.88",Information Management Services,SME,Programme Expenditure
UK Statistics Family,Office for National Statistics,10/11/2021,Exp - Short-Term Contract & Agency Staff - Full Cost,Data Architecture,Talent International,214190,"3,684.49",Information Management Services,SME,Programme Expenditure
UK Statistics Family,Office for National Statistics,10/11/2021,Exp - Purchase Of Goods/Services - Contractors,CLOUD ARCHITECTURE,Talent International,214190,"14,820.00",Information Management Services,SME,Programme Expenditure
UK Statistics Family,Office for National Statistics,10/11/2021,Exp - Purchase Of Goods/Services - Contractors,CLOUD ARCHITECTURE,Talent International,214190,"21,119.70",Information Management Services,SME,Programme Expenditure
UK Statistics Family,Office for National Statistics,10/11/2021,Exp - Purchase Of Goods/Services - Contractors,IT Applications,Talent International,214190,"17,970.00",Information Management Services,SME,Programme Expenditure
UK Statistics Family,Office for National Statistics,10/11/2021,Exp - Purchase Of Goods/Services - IT Contractual Services,IT Applications,Diegesis Limited,214192,"185,160.00",Information Management Services,Large,Programme Expenditure
UK Statistics Family,Office for National Statistics,10/11/2021,Exp - Purchase Of Goods/Services - Contractors,Business Architecture,Parity Resources Limited,214197,"4,198.76",Information Management Services,Large,Programme Expenditure
UK Statistics Family,Office for National Statistics,10/11/2021,Exp - Purchase Of Goods/Services - Contractors,Testing,Parity Resources Limited,214197,"29,053.80",Information Management Services,Large,Programme Expenditure
UK Statistics Family,Office for National Statistics,10/11/2021,Exp - Short-Term Contract & Agency Staff - Full Cost,Census CCS Data Collection,Parity Resources Limited,214197,785.88,Information Management Services,Large,Programme Expenditure
UK Statistics Family,Office for National Statistics,10/11/2021,Exp - Purchase Of Goods/Services - Contractors,Covid Infection Survey,Parity Resources Limited,214197,"2,993.80",Information Management Services,Large,Programme Expenditure
UK Statistics Family,Office for National Statistics,10/11/2021,Exp - Short-Term Contract & Agency Staff - Full Cost,Business Architecture Transformation And Statistical Strategy,Parity Resources Limited,214197,"6,314.16",Information Management Services,Large,Programme Expenditure
UK Statistics Family,Office for National Statistics,10/11/2021,Exp - Short-Term Contract & Agency Staff - Full Cost,Business Architecture Transformation And Statistical Strategy,Parity Resources Limited,214197,808.08,Information Management Services,Large,Programme Expenditure
UK Statistics Family,Office for National Statistics,10/11/2021,Exp - Purchase Of Goods/Services - Contractors,Researcher Support And Data Access ,Parity Resources Limited,214197,"16,020.00",Information Management Services,Large,Programme Expenditure
UK Statistics Family,Office for National Statistics,10/11/2021,Exp - Short-Term Contract & Agency Staff - Full Cost,Recruitment ,Parity Resources Limited,214197,732.6,Information Management Services,Large,Programme Expenditure
UK Statistics Family,Office for National Statistics,10/11/2021,Exp - Purchase Of Goods/Services - Contractors,Security Advisory,Parity Resources Limited,214197,"33,321.60",Information Management Services,Large,Programme Expenditure
UK Statistics Family,Office for National Statistics,10/11/2021,Exp - Short-Term Contract & Agency Staff - Full Cost,Data Architecture,Parity Resources Limited,214197,"2,197.80",Information Management Services,Large,Programme Expenditure
UK Statistics Family,Office for National Statistics,10/11/2021,Exp - Purchase Of Goods/Services - Contractors,Data Architecture,Parity Resources Limited,214197,"2,870.78",Information Management Services,Large,Programme Expenditure
UK Statistics Family,Office for National Statistics,10/11/2021,Exp - Purchase Of Goods/Services - Contractors,Data Architecture,Parity Resources Limited,214197,"6,286.55",Information Management Services,Large,Programme Expenditure
UK Statistics Family,Office for National Statistics,10/11/2021,Exp - Purchase Of Goods/Services - Contractors,IT Applications,Parity Resources Limited,214197,"33,797.66",Information Management Services,Large,Programme Expenditure
UK Statistics Family,Office for National Statistics,10/11/2021,Exp - Purchase Of Goods/Services - Contractors,IT Operations,Parity Resources Limited,214197,"30,649.38",Information Management Services,Large,Programme Expenditure
UK Statistics Family,Office for National Statistics,10/11/2021,Exp - Purchase Of Goods/Services - Contractors,Digital Delivery,Parity Resources Limited,214197,"6,966.00",Information Management Services,Large,Programme Expenditure
UK Statistics Family,Office for National Statistics,10/11/2021,Surveys,Prices Division,Mintel Group Ltd,214199,"41,631.72",Data Acquisition,Large,Programme Expenditure
UK Statistics Family,Office for National Statistics,11/11/2021,Telecoms,IT Operations,Crown Hosting Data Centres Limited,214345,860,Information Management Services,SME,Programme Expenditure
UK Statistics Family,Office for National Statistics,11/11/2021,Hosting,IT Operations,Crown Hosting Data Centres Limited,214345,"59,126.64",Information Management Services,SME,Programme Expenditure
UK Statistics Family,Office for National Statistics,11/11/2021,Buildings Under Construction,Property Newport,Vinci Construction UK Limited,214348,"41,864.22",Facilities Mangement Services,Large,Programme Expenditure
UK Statistics Family,Office for National Statistics,11/11/2021,Buildings Under Construction,Property Newport,Vinci Construction UK Limited,214348,"3,384.06",Facilities Mangement Services,Large,Programme Expenditure
UK Statistics Family,Office for National Statistics,11/11/2021,Travel And Subsistence,Census CCS Data Collection,Concept Information Technology Ltd T/A Concept Resourcing,214349,-4.1,Information Management Services,Large,Programme Expenditure
UK Statistics Family,Office for National Statistics,11/11/2021,Exp - Purchase Of Goods And Services Consultants,Productivity Research And Professional Development,Concept Information Technology Ltd T/A Concept Resourcing,214349,"3,826.36",Information Management Services,Large,Programme Expenditure
UK Statistics Family,Office for National Statistics,11/11/2021,Exp - Purchase Of Goods And Services Consultants,Productivity Research And Professional Development,Concept Information Technology Ltd T/A Concept Resourcing,214349,"8,648.94",Information Management Services,Large,Programme Expenditure
UK Statistics Family,Office for National Statistics,11/11/2021,Exp - Purchase Of Goods And Services Consultants,Productivity Research And Professional Development,Concept Information Technology Ltd T/A Concept Resourcing,214349,"3,920.52",Information Management Services,Large,Programme Expenditure
UK Statistics Family,Office for National Statistics,11/11/2021,Exp - Short-Term Contract & Agency Staff - Full Cost,Business Architecture Transformation And Statistical Strategy,Concept Information Technology Ltd T/A Concept Resourcing,214349,"3,088.91",Information Management Services,Large,Programme Expenditure
UK Statistics Family,Office for National Statistics,11/11/2021,Exp - Short-Term Contract & Agency Staff - Full Cost,"SUB-NATIONAL STATISTICS AND ANALYSIS
Account	
AccountAutocompletes on TAB	",Concept Information Technology Ltd T/A Concept Resourcing,214349,"5,148.18",Information Management Services,Large,Programme Expenditure
UK Statistics Family,Office for National Statistics,11/11/2021,Exp - Short-Term Contract & Agency Staff - Full Cost,Social Surveys Division,Concept Information Technology Ltd T/A Concept Resourcing,214349,"2,820.82",Information Management Services,Large,Programme Expenditure
UK Statistics Family,Office for National Statistics,11/11/2021,Exp - Short-Term Contract & Agency Staff - Full Cost,Labour Market,Concept Information Technology Ltd T/A Concept Resourcing,214349,"7,841.04",Information Management Services,Large,Programme Expenditure
UK Statistics Family,Office for National Statistics,11/11/2021,"ICT Outsourcing, Maintenance And Support",Senior Management Team Design,Totalmobile Ltd,214359,"61,563.00",Software Licenses,SME,Programme Expenditure
UK Statistics Family,Office for National Statistics,11/11/2021,"ICT Outsourcing, Maintenance And Support",IT Operations,CTS (Cloud Technology Solutions Ltd),214361,"25,871.65",DST Infrastructure Preparation,Large,Programme Expenditure
UK Statistics Family,Office for National Statistics,11/11/2021,Hosting,IT Operations,CTS (Cloud Technology Solutions Ltd),214361,"47,589.50",DST Infrastructure Preparation,Large,Programme Expenditure
UK Statistics Family,Office for National Statistics,11/11/2021,Exp - Purchase Of Goods/Services - Contractors,Digital Publishing,Talent International,214364,"17,279.71",Information Management Services,SME,Programme Expenditure
UK Statistics Family,Office for National Statistics,11/11/2021,Exp - Purchase Of Goods/Services - Contractors,Digital Publishing,Talent International,214364,"20,250.00",Information Management Services,SME,Programme Expenditure
UK Statistics Family,Office for National Statistics,11/11/2021,Exp - Short-Term Contract & Agency Staff - Full Cost,Data Architecture,Talent International,214364,"1,504.28",Information Management Services,SME,Programme Expenditure
UK Statistics Family,Office for National Statistics,11/11/2021,Exp - Purchase Of Goods/Services - Contractors,IT Applications,Talent International,214364,"3,120.00",Information Management Services,SME,Programme Expenditure
UK Statistics Family,Office for National Statistics,11/11/2021,Exp - Purchase Of Goods/Services - Contractors,Digital Delivery,Talent International,214364,"15,990.00",Information Management Services,SME,Programme Expenditure
UK Statistics Family,Office for National Statistics,11/11/2021,Exp - Purchase Of Goods/Services - Contractors,Business Architecture,LA FOSSE ASSOCIATES LIMITED,214365,"14,820.00",Information Management Services,Large,Programme Expenditure
UK Statistics Family,Office for National Statistics,11/11/2021,Exp - Purchase Of Goods/Services - Contractors,Strategy And Architecture,LA FOSSE ASSOCIATES LIMITED,214365,"21,000.00",Information Management Services,Large,Programme Expenditure
UK Statistics Family,Office for National Statistics,11/11/2021,Exp - Short-Term Contract & Agency Staff - Full Cost,INTEGRATED DATA STRATEGY AND DELIVERY,SmartSourcing Ltd,214366,"5,355.00",Information Management Services,SME,Programme Expenditure
UK Statistics Family,Office for National Statistics,11/11/2021,Exp - Short-Term Contract & Agency Staff - Full Cost,Data Architecture,SmartSourcing Ltd,214366,"2,130.48",Information Management Services,SME,Programme Expenditure
UK Statistics Family,Office for National Statistics,11/11/2021,Exp - Short-Term Contract & Agency Staff - Full Cost,Data Architecture,SmartSourcing Ltd,214366,732.6,Information Management Services,SME,Programme Expenditure
UK Statistics Family,Office for National Statistics,11/11/2021,Exp - Purchase Of Goods/Services - Contractors,Data Architecture,SmartSourcing Ltd,214366,"16,500.00",Information Management Services,SME,Programme Expenditure
UK Statistics Family,Office for National Statistics,11/11/2021,Exp - Purchase Of Goods/Services - Contractors,CDIO UNGP,SmartSourcing Ltd,214366,"3,746.16",Information Management Services,SME,Programme Expenditure
UK Statistics Family,Office for National Statistics,12/11/2021,Exp - Purchase Of Goods/Services - Incentive Payments,Survey Management,Park Retail Ltd,214370,"16,361.05",Survey Response Incentive Vouchers,Large,Programme Expenditure
UK Statistics Family,Office for National Statistics,12/11/2021,Exp - Purchase Of Goods/Services - Incentive Payments,Survey Management,Park Retail Ltd,214370,"3,414.55",Survey Response Incentive Vouchers,Large,Programme Expenditure
UK Statistics Family,Office for National Statistics,12/11/2021,Exp - Purchase Of Goods/Services - Incentive Payments,Survey Management,Park Retail Ltd,214370,"1,074.68",Survey Response Incentive Vouchers,Large,Programme Expenditure
UK Statistics Family,Office for National Statistics,12/11/2021,Exp - Purchase Of Goods/Services - Incentive Payments,Survey Management,Park Retail Ltd,214370,"8,873.65",Survey Response Incentive Vouchers,Large,Programme Expenditure
UK Statistics Family,Office for National Statistics,12/11/2021,Exp - Purchase Of Goods/Services - Incentive Payments,Survey Management,Park Retail Ltd,214370,"1,137.74",Survey Response Incentive Vouchers,Large,Programme Expenditure
UK Statistics Family,Office for National Statistics,12/11/2021,Exp - Purchase Of Goods/Services - Incentive Payments,Survey Management,Park Retail Ltd,214370,5.92,Survey Response Incentive Vouchers,Large,Programme Expenditure
UK Statistics Family,Office for National Statistics,12/11/2021,"ICT Outsourcing, Maintenance And Support",IT Operations,Scc,214371,"303,747.00",Information Management Services,Large,Programme Expenditure
UK Statistics Family,Office for National Statistics,12/11/2021,End User Software And Hardware,IT Operations,Phoenix Software Ltd,214375,"3,289,334.16",Software Licenses,SME,Programme Expenditure
UK Statistics Family,Office for National Statistics,12/11/2021,Exp - Purchase Of Goods/Services - Contractors,Digital Publishing,Malikshaw Interim & Executive,214389,"13,063.94",Information Management Services,SME,Programme Expenditure
UK Statistics Family,Office for National Statistics,12/11/2021,Exp - Purchase Of Goods/Services - Contractors,Data Architecture,Malikshaw Interim & Executive,214389,"30,240.00",Information Management Services,SME,Programme Expenditure
UK Statistics Family,Office for National Statistics,12/11/2021,Exp - Short-Term Contract & Agency Staff - Full Cost,Census CCS Data Collection,Talent International,214391,"3,043.70",Information Management Services,SME,Programme Expenditure
UK Statistics Family,Office for National Statistics,12/11/2021,Exp - Purchase Of Goods/Services - Contractors,Digital Publishing,Talent International,214391,"28,722.00",Information Management Services,SME,Programme Expenditure
UK Statistics Family,Office for National Statistics,12/11/2021,Exp - Purchase Of Goods/Services - Contractors,Digital Publishing,Talent International,214391,"15,750.00",Information Management Services,SME,Programme Expenditure
UK Statistics Family,Office for National Statistics,12/11/2021,Exp - Short-Term Contract & Agency Staff - Full Cost,Census & Soc Methodology Dd,Talent International,214391,"2,478.60",Information Management Services,SME,Programme Expenditure
UK Statistics Family,Office for National Statistics,12/11/2021,Exp - Short-Term Contract & Agency Staff - Full Cost,Data Architecture,Talent International,214391,"-3,760.68",Information Management Services,SME,Programme Expenditure
UK Statistics Family,Office for National Statistics,12/11/2021,Exp - Purchase Of Goods/Services - Contractors,Data Architecture,Talent International,214391,"3,300.00",Information Management Services,SME,Programme Expenditure
UK Statistics Family,Office for National Statistics,12/11/2021,Exp - Purchase Of Goods/Services - Incentive Payments,Survey Management,Sodexo Motivation Solutions U.K. ltd,214393,"19,437.00",Survey Response Incentive Vouchers,Large,Programme Expenditure
UK Statistics Family,Office for National Statistics,12/11/2021,Exp - Purchase Of Goods/Services - Incentive Payments,Survey Management,Sodexo Motivation Solutions U.K. ltd,214393,"4,510.14",Survey Response Incentive Vouchers,Large,Programme Expenditure
UK Statistics Family,Office for National Statistics,12/11/2021,Exp - Purchase Of Goods/Services - Incentive Payments,Survey Management,Sodexo Motivation Solutions U.K. ltd,214393,"2,901.48",Survey Response Incentive Vouchers,Large,Programme Expenditure
UK Statistics Family,Office for National Statistics,12/11/2021,Exp - Purchase Of Goods/Services - Incentive Payments,Survey Management,Sodexo Motivation Solutions U.K. ltd,214393,"1,253.36",Survey Response Incentive Vouchers,Large,Programme Expenditure
UK Statistics Family,Office for National Statistics,12/11/2021,Exp - Purchase Of Goods/Services - Incentive Payments,Survey Management,Sodexo Motivation Solutions U.K. ltd,214393,"52,024.43",Survey Response Incentive Vouchers,Large,Programme Expenditure
UK Statistics Family,Office for National Statistics,12/11/2021,Exp - Purchase Of Goods/Services - Contractors,Digital Publishing,LA FOSSE ASSOCIATES LIMITED,214394,"10,800.00",Information Management Services,Large,Programme Expenditure
UK Statistics Family,Office for National Statistics,12/11/2021,Exp - Purchase Of Goods/Services - Contractors,Digital Publishing,LA FOSSE ASSOCIATES LIMITED,214394,"28,800.00",Information Management Services,Large,Programme Expenditure
UK Statistics Family,Office for National Statistics,12/11/2021,Other Professional Services,DST Reapportioning,EY Foundation,214398,"31,800.00",Training and Educational Services,Large,Programme Expenditure
UK Statistics Family,Office for National Statistics,12/11/2021,Exp - Permanent UK Staff - PRP Voucher Payments,ONS Corporate Funds,Edenred (UK Group) Limited,214403,"26,550.00",Performance Reward Vouchers,Large,Programme Expenditure
UK Statistics Family,Office for National Statistics,15/11/2021,Software Licences At Cost - Additions,IT Operations,Softcat,214660,"69,157.88",Software Licenses,SME,Programme Expenditure
UK Statistics Family,Office for National Statistics,15/11/2021,Exp - Purchase Of Goods/Services - Contractors,Testing,Certes Computing Ltd,214661,"12,810.00",Information Management Services,SME,Programme Expenditure
UK Statistics Family,Office for National Statistics,15/11/2021,Exp - Purchase Of Goods/Services - Contractors,Data Architecture,Certes Computing Ltd,214661,"17,998.20",Information Management Services,SME,Programme Expenditure
UK Statistics Family,Office for National Statistics,15/11/2021,Exp - Purchase Of Goods/Services - Contractors,Data Architecture,Certes Computing Ltd,214661,"17,638.24",Information Management Services,SME,Programme Expenditure
UK Statistics Family,Office for National Statistics,15/11/2021,Exp - Purchase Of Goods/Services - Contractors,CLOUD ARCHITECTURE,Certes Computing Ltd,214661,"19,215.00",Information Management Services,SME,Programme Expenditure
UK Statistics Family,Office for National Statistics,15/11/2021,Exp - Purchase Of Goods/Services - Contractors,Strategy And Architecture,Certes Computing Ltd,214661,"19,566.58",Information Management Services,SME,Programme Expenditure
UK Statistics Family,Office for National Statistics,15/11/2021,Exp - Purchase Of Goods/Services - Contractors,Tech Delivery Legacy Sp,Certes Computing Ltd,214661,"2,879.71",Information Management Services,SME,Programme Expenditure
UK Statistics Family,Office for National Statistics,15/11/2021,Exp - Purchase Of Goods/Services - Contractors,Digital Delivery,Certes Computing Ltd,214661,"13,034.29",Information Management Services,SME,Programme Expenditure
UK Statistics Family,Office for National Statistics,15/11/2021,Exp - Purchase Of Goods/Services - Contractors,Digital Delivery,Certes Computing Ltd,214661,"12,238.78",Information Management Services,SME,Programme Expenditure
UK Statistics Family,Office for National Statistics,15/11/2021,Surveys,Business Outputs And Developments,Iff Research,214662,"130,203.60",Statistical Services,Large,Programme Expenditure
UK Statistics Family,Office for National Statistics,15/11/2021,Exp - Purchase Of Goods/Services - Contractors,Digital Publishing,LA FOSSE ASSOCIATES LIMITED,214665,"34,560.00",Information Management Services,Large,Programme Expenditure
UK Statistics Family,Office for National Statistics,15/11/2021,Exp - Purchase Of Goods/Services - Contractors,Business Architecture,Parity Resources Limited,214666,"4,198.76",Information Management Services,Large,Programme Expenditure
UK Statistics Family,Office for National Statistics,15/11/2021,Exp - Purchase Of Goods/Services - Contractors,Testing,Parity Resources Limited,214666,"3,600.00",Information Management Services,Large,Programme Expenditure
UK Statistics Family,Office for National Statistics,15/11/2021,Exp - Purchase Of Goods/Services - Contractors,Covid Infection Survey,Parity Resources Limited,214666,"2,993.80",Information Management Services,Large,Programme Expenditure
UK Statistics Family,Office for National Statistics,15/11/2021,Exp - Purchase Of Goods/Services - Contractors,Digital Publishing,Parity Resources Limited,214666,"3,550.50",Information Management Services,Large,Programme Expenditure
UK Statistics Family,Office for National Statistics,15/11/2021,Exp - Short-Term Contract & Agency Staff - Full Cost,Recruitment ,Parity Resources Limited,214666,"3,223.44",Information Management Services,Large,Programme Expenditure
UK Statistics Family,Office for National Statistics,15/11/2021,Exp - Short-Term Contract & Agency Staff - Full Cost,Data Architecture,Parity Resources Limited,214666,"4,395.60",Information Management Services,Large,Programme Expenditure
UK Statistics Family,Office for National Statistics,15/11/2021,Exp - Purchase Of Goods/Services - Contractors,Strategy And Architecture,Parity Resources Limited,214666,"4,210.50",Information Management Services,Large,Programme Expenditure
UK Statistics Family,Office for National Statistics,15/11/2021,Exp - Purchase Of Goods/Services - Contractors,IT Applications,Parity Resources Limited,214666,"3,910.50",Information Management Services,Large,Programme Expenditure
UK Statistics Family,Office for National Statistics,15/11/2021,Exp - Purchase Of Goods/Services - Contractors,IT Operations,Parity Resources Limited,214666,"19,031.22",Information Management Services,Large,Programme Expenditure
UK Statistics Family,Office for National Statistics,15/11/2021,Exp - Purchase Of Goods/Services - Contractors,Digital Delivery,Parity Resources Limited,214666,"3,870.00",Information Management Services,Large,Programme Expenditure
UK Statistics Family,Office for National Statistics,16/11/2021,Capital Major Works >25K,Property Titchfield,Vinci Construction UK Limited,214673,"160,142.46",Facilities Mangement Services,Large,Programme Expenditure
UK Statistics Family,Office for National Statistics,16/11/2021,Exp - Short-Term Contract & Agency Staff - Full Cost,International Trade And Transactions,Concept Information Technology Ltd T/A Concept Resourcing,214674,"7,821.32",Information Management Services,Large,Programme Expenditure
UK Statistics Family,Office for National Statistics,16/11/2021,Exp - Short-Term Contract & Agency Staff - Full Cost,Ask Business Services,Concept Information Technology Ltd T/A Concept Resourcing,214674,"3,390.38",Information Management Services,Large,Programme Expenditure
UK Statistics Family,Office for National Statistics,16/11/2021,Exp - Purchase Of Goods/Services - Contractors,CLOUD ARCHITECTURE,Concept Information Technology Ltd T/A Concept Resourcing,214674,"33,750.00",Information Management Services,Large,Programme Expenditure
UK Statistics Family,Office for National Statistics,16/11/2021,Exp - Purchase Of Goods/Services - Contractors,CLOUD ARCHITECTURE,Concept Information Technology Ltd T/A Concept Resourcing,214674,900,Information Management Services,Large,Programme Expenditure
UK Statistics Family,Office for National Statistics,16/11/2021,Exp - Short-Term Contract & Agency Staff - Full Cost,Prices Division,Concept Information Technology Ltd T/A Concept Resourcing,214674,823.7,Information Management Services,Large,Programme Expenditure
UK Statistics Family,Office for National Statistics,16/11/2021,Exp - Short-Term Contract & Agency Staff - Full Cost,Prices Division,Concept Information Technology Ltd T/A Concept Resourcing,214674,"4,324.48",Information Management Services,Large,Programme Expenditure
UK Statistics Family,Office for National Statistics,16/11/2021,Exp - Purchase Of Goods/Services - Contractors,Business Architecture,Certes Computing Ltd,214679,"17,934.00",Information Management Services,SME,Programme Expenditure
UK Statistics Family,Office for National Statistics,16/11/2021,Exp - Purchase Of Goods/Services - Contractors,Testing,Certes Computing Ltd,214679,"16,332.60",Information Management Services,SME,Programme Expenditure
UK Statistics Family,Office for National Statistics,16/11/2021,Exp - Purchase Of Goods/Services - Contractors,Security Advisory,Certes Computing Ltd,214679,"18,318.43",Information Management Services,SME,Programme Expenditure
UK Statistics Family,Office for National Statistics,16/11/2021,Exp - Purchase Of Goods/Services - Contractors,Strategy And Architecture,Certes Computing Ltd,214679,"3,330.62",Information Management Services,SME,Programme Expenditure
UK Statistics Family,Office for National Statistics,16/11/2021,Exp - Purchase Of Goods/Services - Contractors,Tech Delivery Legacy Sp,Certes Computing Ltd,214679,"2,690.11",Information Management Services,SME,Programme Expenditure
UK Statistics Family,Office for National Statistics,16/11/2021,Exp - Purchase Of Goods/Services - Contractors,Digital Delivery,Certes Computing Ltd,214679,"48,555.74",Information Management Services,SME,Programme Expenditure
UK Statistics Family,Office for National Statistics,16/11/2021,Exp - Purchase Of Goods/Services - Contractors,Testing,La International,214680,"12,751.95",Information Management Services,SME,Programme Expenditure
UK Statistics Family,Office for National Statistics,16/11/2021,Exp - Purchase Of Goods/Services - Contractors,Testing,La International,214680,"3,317.65",Information Management Services,SME,Programme Expenditure
UK Statistics Family,Office for National Statistics,16/11/2021,Exp - Purchase Of Goods/Services - Contractors,Data Architecture,La International,214680,"14,353.20",Information Management Services,SME,Programme Expenditure
UK Statistics Family,Office for National Statistics,16/11/2021,Exp - Purchase Of Goods/Services - Contractors,Data Architecture,La International,214680,"3,524.22",Information Management Services,SME,Programme Expenditure
UK Statistics Family,Office for National Statistics,16/11/2021,Exp - Purchase Of Goods/Services - Contractors,Tech Delivery Legacy Sp,La International,214680,"7,392.96",Information Management Services,SME,Programme Expenditure
UK Statistics Family,Office for National Statistics,16/11/2021,Exp - Purchase Of Goods/Services - Contractors,IT Applications,La International,214680,"2,306.78",Information Management Services,SME,Programme Expenditure
UK Statistics Family,Office for National Statistics,16/11/2021,Exp - Short-Term Contract & Agency Staff - Full Cost,Office Of Chief Data And Information,La International,214680,"1,215.00",Information Management Services,SME,Programme Expenditure
UK Statistics Family,Office for National Statistics,16/11/2021,Exp - Purchase Of Goods/Services - Contractors,Digital Delivery,La International,214680,"7,176.60",Information Management Services,SME,Programme Expenditure
UK Statistics Family,Office for National Statistics,16/11/2021,Print & Post,Social Survey Transformation Newport,APS Group,214683,"129,084.92",Print and Post Services,Large,Programme Expenditure
UK Statistics Family,Office for National Statistics,16/11/2021,Exp - Short-Term Contract & Agency Staff - Full Cost,Census CCS Data Collection,Malikshaw Interim & Executive,214685,"4,363.26",Information Management Services,SME,Programme Expenditure
UK Statistics Family,Office for National Statistics,16/11/2021,Exp - Short-Term Contract & Agency Staff - Full Cost,MDR Management,Malikshaw Interim & Executive,214685,"4,750.58",Information Management Services,SME,Programme Expenditure
UK Statistics Family,Office for National Statistics,16/11/2021,Exp - Purchase Of Goods/Services - Contractors,Data Architecture,Malikshaw Interim & Executive,214685,"14,400.00",Information Management Services,SME,Programme Expenditure
UK Statistics Family,Office for National Statistics,16/11/2021,Exp - Purchase Of Goods/Services - Contractors,IT Operations,Malikshaw Interim & Executive,214685,"21,658.65",Information Management Services,SME,Programme Expenditure
UK Statistics Family,Office for National Statistics,16/11/2021,Exp - Short-Term Contract & Agency Staff - Full Cost,Business Architecture Transformation And Statistical Strategy,SmartSourcing Ltd,214690,"4,066.22",Information Management Services,SME,Programme Expenditure
UK Statistics Family,Office for National Statistics,16/11/2021,Exp - Short-Term Contract & Agency Staff - Full Cost,Strategy And Organisational Effectiveness,SmartSourcing Ltd,214690,"23,980.80",Information Management Services,SME,Programme Expenditure
UK Statistics Family,Office for National Statistics,16/11/2021,Exp - Short-Term Contract & Agency Staff - Full Cost,Interviewer Management TU,SmartSourcing Ltd,214690,"2,350.32",Information Management Services,SME,Programme Expenditure
UK Statistics Family,Office for National Statistics,16/11/2021,Exp - Purchase Of Goods/Services - Contractors,Digital Publishing,Parity Resources Limited,214692,"6,282.36",Information Management Services,Large,Programme Expenditure
UK Statistics Family,Office for National Statistics,16/11/2021,Exp - Short-Term Contract & Agency Staff - Full Cost,Business Architecture Transformation And Statistical Strategy,Parity Resources Limited,214692,"2,648.40",Information Management Services,Large,Programme Expenditure
UK Statistics Family,Office for National Statistics,16/11/2021,Exp - Short-Term Contract & Agency Staff - Full Cost,Business Architecture Transformation And Statistical Strategy,Parity Resources Limited,214692,808.08,Information Management Services,Large,Programme Expenditure
UK Statistics Family,Office for National Statistics,16/11/2021,Exp - Purchase Of Goods/Services - Contractors,ECONOMIC CHANGE,Parity Resources Limited,214692,"2,563.20",Information Management Services,Large,Programme Expenditure
UK Statistics Family,Office for National Statistics,16/11/2021,Exp - Purchase Of Goods/Services - Contractors,Security Advisory,Parity Resources Limited,214692,"3,844.80",Information Management Services,Large,Programme Expenditure
UK Statistics Family,Office for National Statistics,16/11/2021,Exp - Purchase Of Goods/Services - Contractors,Strategy And Architecture,Parity Resources Limited,214692,"17,263.06",Information Management Services,Large,Programme Expenditure
UK Statistics Family,Office for National Statistics,16/11/2021,Exp - Purchase Of Goods/Services - Contractors,IT Applications,Parity Resources Limited,214692,"4,713.30",Information Management Services,Large,Programme Expenditure
UK Statistics Family,Office for National Statistics,16/11/2021,Exp - Purchase Of Goods/Services - Contractors,IT Operations,Parity Resources Limited,214692,"16,802.10",Information Management Services,Large,Programme Expenditure
UK Statistics Family,Office for National Statistics,16/11/2021,Exp - Purchase Of Goods/Services - Contractors,Operations,LA FOSSE ASSOCIATES LIMITED,214697,"16,500.00",Information Management Services,Large,Programme Expenditure
UK Statistics Family,Office for National Statistics,16/11/2021,Exp - Short-Term Contract & Agency Staff - Full Cost,Strategy And Organisational Effectiveness,LA FOSSE ASSOCIATES LIMITED,214697,"12,000.00",Information Management Services,Large,Programme Expenditure
UK Statistics Family,Office for National Statistics,16/11/2021,Exp - Purchase Of Goods/Services - Contractors,Data Architecture,LA FOSSE ASSOCIATES LIMITED,214697,"21,060.00",Information Management Services,Large,Programme Expenditure
UK Statistics Family,Office for National Statistics,16/11/2021,Exp - Purchase Of Goods/Services - Contractors,Strategy And Architecture,LA FOSSE ASSOCIATES LIMITED,214697,"3,150.00",Information Management Services,Large,Programme Expenditure
UK Statistics Family,Office for National Statistics,17/11/2021,Exp - Purchase Of Goods/Services - IT Contractual Services,IT Operations,E Synergy Solutions,214700,"29,376.00",Information Management Services,SME,Programme Expenditure
UK Statistics Family,Office for National Statistics,17/11/2021,Training & Development,Learning And Capability,KPMG LLP,214701,"52,448.40",Training and Educational Services,SME,Programme Expenditure
UK Statistics Family,Office for National Statistics,17/11/2021,Exp - Purchase Of Goods/Services - Training & Development - Seminar & Conference Fees,Office Of Chief Data And Information,KPMG LLP,214701,"2,970.00",Training and Educational Services,SME,Programme Expenditure
UK Statistics Family,Office for National Statistics,17/11/2021,Exp - Purchase Of Goods/Services - IT Contractual Services,Strategy And Architecture,Ibm United Kingdom Ltd,214703,"34,532.88",Information Management Services,Large,Programme Expenditure
UK Statistics Family,Office for National Statistics,17/11/2021,Exp - Purchase Of Goods/Services - IT Contractual Services,Digital Delivery,Methods Business & Digital Technology Ltd,214712,"54,060.00",Information Management Services,Large,Programme Expenditure
UK Statistics Family,Office for National Statistics,17/11/2021,Exp - Purchase Of Goods/Services - Contractors,Strategy And Architecture,Talent International,214713,"5,760.00",Information Management Services,SME,Programme Expenditure
UK Statistics Family,Office for National Statistics,17/11/2021,Exp - Purchase Of Goods/Services - Contractors,Tech Delivery Data As A Platform,Talent International,214713,"19,259.95",Information Management Services,SME,Programme Expenditure
UK Statistics Family,Office for National Statistics,17/11/2021,Exp - Purchase Of Goods/Services - Contractors,Tech Delivery Next Gen IT And Infrastructure,Talent International,214713,"20,279.71",Information Management Services,SME,Programme Expenditure
UK Statistics Family,Office for National Statistics,17/11/2021,Exp - Purchase Of Goods/Services - Contractors,IT Operations,Talent International,214713,"30,240.00",Information Management Services,SME,Programme Expenditure
UK Statistics Family,Office for National Statistics,17/11/2021,"ICT Outsourcing, Maintenance And Support",Researcher Support And Data Access ,Equiniti-TopLevel,214721,"35,389.80",Information Management Services,SME,Programme Expenditure
UK Statistics Family,Office for National Statistics,17/11/2021,Exp - Purchase Of Goods/Services - Contractors,Data As A Service,LA FOSSE ASSOCIATES LIMITED,214722,"28,080.00",Information Management Services,Large,Programme Expenditure
UK Statistics Family,Office for National Statistics,18/11/2021,FM Contract Payments,Vinci Payments,Vinci Construction UK Limited,214957,"340,778.72",Facilities Mangement Services,Large,Programme Expenditure
UK Statistics Family,Office for National Statistics,18/11/2021,Exp - Short-Term Contract & Agency Staff - Full Cost,Covid Infection Survey,Concept Information Technology Ltd T/A Concept Resourcing,214958,"5,148.18",Information Management Services,Large,Programme Expenditure
UK Statistics Family,Office for National Statistics,18/11/2021,Exp - Short-Term Contract & Agency Staff - Full Cost,Public Sector And Households,Concept Information Technology Ltd T/A Concept Resourcing,214958,"1,015.16",Information Management Services,Large,Programme Expenditure
UK Statistics Family,Office for National Statistics,18/11/2021,Exp - Short-Term Contract & Agency Staff - Full Cost,Public Sector And Households,Concept Information Technology Ltd T/A Concept Resourcing,214958,"20,269.17",Information Management Services,Large,Programme Expenditure
UK Statistics Family,Office for National Statistics,18/11/2021,Exp - Short-Term Contract & Agency Staff - Full Cost,Public Sector And Households,Concept Information Technology Ltd T/A Concept Resourcing,214958,"8,648.96",Information Management Services,Large,Programme Expenditure
UK Statistics Family,Office for National Statistics,18/11/2021,Exp - Purchase Of Goods/Services - Contractors,2023 CENSUS DATA TRANSFORMATION,La International,214962,"4,004.82",Information Management Services,SME,Programme Expenditure
UK Statistics Family,Office for National Statistics,18/11/2021,Exp - Purchase Of Goods/Services - Contractors,Testing,La International,214962,"20,485.49",Information Management Services,SME,Programme Expenditure
UK Statistics Family,Office for National Statistics,18/11/2021,Exp - Purchase Of Goods/Services - Contractors,Testing,La International,214962,"21,405.90",Information Management Services,SME,Programme Expenditure
UK Statistics Family,Office for National Statistics,18/11/2021,Stationery,Lodgecard,Royal Bank of Scotland,214963,"1,549.92",Multiple Procurement Card Purchases  - Stationery ,Large,Programme Expenditure
UK Statistics Family,Office for National Statistics,18/11/2021,Other Goods And Services,GPC,Royal Bank of Scotland,214963,"59,378.62",Multiple Procurement Card Purchases - other goods/services  ,Large,Programme Expenditure
UK Statistics Family,Office for National Statistics,18/11/2021,Travel And Subsistence,Car Hire,Royal Bank of Scotland,214963,"14,836.42",Multiple Procurement Card Purchases - Car Hire  ,Large,Programme Expenditure
UK Statistics Family,Office for National Statistics,18/11/2021,Exp - Purchase Of Goods/Services - IT Contractual Services,Digital Delivery,Methods Business & Digital Technology Ltd,214968,"81,450.00",Information Management Services,Large,Programme Expenditure
UK Statistics Family,Office for National Statistics,18/11/2021,EXP - PURCHASE OF GOODS/SERVICES -  NON IT CONTRACTUAL PAYMENTS,Census CCS Data Collection,Adecco UK Limited,214975,"893,766.00",Census People Services Contractual,SME,Programme Expenditure
UK Statistics Family,Office for National Statistics,19/11/2021,Exp - Purchase Of Goods/Services - Contractors,IT Applications,Certes Computing Ltd,214988,"27,357.26",Information Management Services,SME,Programme Expenditure
UK Statistics Family,Office for National Statistics,19/11/2021,Exp - Purchase Of Goods/Services - Contractors,Business Architecture,La International,214989,"4,251.83",Information Management Services,SME,Programme Expenditure
UK Statistics Family,Office for National Statistics,19/11/2021,Exp - Purchase Of Goods/Services - Contractors,Testing,La International,214989,"12,056.38",Information Management Services,SME,Programme Expenditure
UK Statistics Family,Office for National Statistics,19/11/2021,Exp - Purchase Of Goods/Services - Contractors,Testing,La International,214989,"4,281.18",Information Management Services,SME,Programme Expenditure
UK Statistics Family,Office for National Statistics,19/11/2021,Exp - Purchase Of Goods/Services - Contractors,Testing,La International,214989,"3,317.65",Information Management Services,SME,Programme Expenditure
UK Statistics Family,Office for National Statistics,19/11/2021,Exp - Purchase Of Goods/Services - Contractors,Digital Publishing,La International,214989,"7,186.80",Information Management Services,SME,Programme Expenditure
UK Statistics Family,Office for National Statistics,19/11/2021,Exp - Purchase Of Goods/Services - Contractors,STRATEGY SYNTHESIS AND CO-ORDINATION,La International,214989,"2,525.52",Information Management Services,SME,Programme Expenditure
UK Statistics Family,Office for National Statistics,19/11/2021,Exp - Purchase Of Goods/Services - Contractors,CLOUD ARCHITECTURE,La International,214989,"7,689.24",Information Management Services,SME,Programme Expenditure
UK Statistics Family,Office for National Statistics,19/11/2021,Exp - Purchase Of Goods/Services - Contractors,IT Applications,La International,214989,"26,867.16",Information Management Services,SME,Programme Expenditure
UK Statistics Family,Office for National Statistics,19/11/2021,EXP - PURCHASE OF GOODS/SERVICES -  NON IT CONTRACTUAL PAYMENTS,Census CCS Data Collection,Granby Marketing Services Ltd,214994,"104,135.81",Stoarage and Distribution Services,Large,Programme Expenditure
UK Statistics Family,Office for National Statistics,19/11/2021,Exp - Purchase Of Goods/Services - IT Contractual Services,Digital Delivery,Methods Business & Digital Technology Ltd,214995,"52,740.00",Information Management Services,Large,Programme Expenditure
UK Statistics Family,Office for National Statistics,19/11/2021,Hosting,CLOUD ARCHITECTURE,Insight Direct,214999,"1,812,483.48",Information Management Services,Large,Programme Expenditure
UK Statistics Family,Office for National Statistics,24/11/2021,FM Contract Payments,Property London,Tandem Property Asset Management LLP,215436,"55,008.00",Property Rental,Large,Programme Expenditure
UK Statistics Family,Office for National Statistics,24/11/2021,Exp - Purchase Of Goods/Services - IT Contractual Services,Tech Delivery Data As A Platform,Kainos,215437,"32,154.00",Information Management Services,Large,Programme Expenditure
UK Statistics Family,Office for National Statistics,24/11/2021,Exp - Short-Term Contract & Agency Staff - Full Cost,Business Change Support,Concept Information Technology Ltd T/A Concept Resourcing,215439,"4,118.54",Information Management Services,Large,Programme Expenditure
UK Statistics Family,Office for National Statistics,24/11/2021,Exp - Short-Term Contract & Agency Staff - Full Cost,Business Change Support,Concept Information Technology Ltd T/A Concept Resourcing,215439,"3,806.86",Information Management Services,Large,Programme Expenditure
UK Statistics Family,Office for National Statistics,24/11/2021,Exp - Short-Term Contract & Agency Staff - Full Cost,Business Change Support,Concept Information Technology Ltd T/A Concept Resourcing,215439,"5,127.31",Information Management Services,Large,Programme Expenditure
UK Statistics Family,Office for National Statistics,24/11/2021,Exp - Short-Term Contract & Agency Staff - Full Cost,International Trade And Transactions,Concept Information Technology Ltd T/A Concept Resourcing,215439,"5,816.05",Information Management Services,Large,Programme Expenditure
UK Statistics Family,Office for National Statistics,24/11/2021,Exp - Short-Term Contract & Agency Staff - Full Cost,Productivity Research And Professional Development,Concept Information Technology Ltd T/A Concept Resourcing,215439,"5,868.64",Information Management Services,Large,Programme Expenditure
UK Statistics Family,Office for National Statistics,24/11/2021,Exp - Short-Term Contract & Agency Staff - Full Cost,Crime Income And Wealth,Concept Information Technology Ltd T/A Concept Resourcing,215439,"2,031.46",Information Management Services,Large,Programme Expenditure
UK Statistics Family,Office for National Statistics,24/11/2021,Exp - Short-Term Contract & Agency Staff - Full Cost,Business Statistics Transformation,Concept Information Technology Ltd T/A Concept Resourcing,215439,"3,920.52",Information Management Services,Large,Programme Expenditure
UK Statistics Family,Office for National Statistics,24/11/2021,Exp - Short-Term Contract & Agency Staff - Full Cost,Prices Division,Concept Information Technology Ltd T/A Concept Resourcing,215439,"3,390.38",Information Management Services,Large,Programme Expenditure
UK Statistics Family,Office for National Statistics,24/11/2021,Exp - Short-Term Contract & Agency Staff - Full Cost,Prices Division,Concept Information Technology Ltd T/A Concept Resourcing,215439,"4,118.54",Information Management Services,Large,Programme Expenditure
UK Statistics Family,Office for National Statistics,24/11/2021,Exp - Short-Term Contract & Agency Staff - Full Cost,Corporations,Concept Information Technology Ltd T/A Concept Resourcing,215439,"3,645.98",Information Management Services,Large,Programme Expenditure
UK Statistics Family,Office for National Statistics,24/11/2021,Exp - Purchase Of Goods/Services - Contractors,Business Architecture,Certes Computing Ltd,215446,"7,173.60",Information Management Services,SME,Programme Expenditure
UK Statistics Family,Office for National Statistics,24/11/2021,Exp - Purchase Of Goods/Services - Contractors,CLOUD ARCHITECTURE,Certes Computing Ltd,215446,"3,840.00",Information Management Services,SME,Programme Expenditure
UK Statistics Family,Office for National Statistics,24/11/2021,Exp - Purchase Of Goods/Services - Contractors,Tech Delivery Data As A Platform,Certes Computing Ltd,215446,"16,198.38",Information Management Services,SME,Programme Expenditure
UK Statistics Family,Office for National Statistics,24/11/2021,Exp - Purchase Of Goods/Services - Contractors,Business Architecture,La International,215447,"3,588.30",Information Management Services,SME,Programme Expenditure
UK Statistics Family,Office for National Statistics,24/11/2021,Exp - Purchase Of Goods/Services - Contractors,Testing,La International,215447,-640.78,Information Management Services,SME,Programme Expenditure
UK Statistics Family,Office for National Statistics,24/11/2021,Exp - Purchase Of Goods/Services - Contractors,Digital Publishing,La International,215447,"7,186.80",Information Management Services,SME,Programme Expenditure
UK Statistics Family,Office for National Statistics,24/11/2021,Exp - Purchase Of Goods/Services - Contractors,Digital Publishing,La International,215447,"4,581.18",Information Management Services,SME,Programme Expenditure
UK Statistics Family,Office for National Statistics,24/11/2021,Exp - Purchase Of Goods/Services - Contractors,ANALYTICAL ENGAGEMENT AND IMPACT,La International,215447,"6,900.00",Information Management Services,SME,Programme Expenditure
UK Statistics Family,Office for National Statistics,24/11/2021,Exp - Purchase Of Goods/Services - Contractors,Data Architecture,La International,215447,"3,524.22",Information Management Services,SME,Programme Expenditure
UK Statistics Family,Office for National Statistics,24/11/2021,Exp - Purchase Of Goods/Services - Contractors,Data Architecture,La International,215447,"7,689.24",Information Management Services,SME,Programme Expenditure
UK Statistics Family,Office for National Statistics,24/11/2021,Exp - Purchase Of Goods/Services - Contractors,Tech Delivery Legacy Sp,La International,215447,"6,160.80",Information Management Services,SME,Programme Expenditure
UK Statistics Family,Office for National Statistics,24/11/2021,Exp - Purchase Of Goods/Services - Contractors,Tech Delivery Data As A Platform,La International,215447,"24,990.12",Information Management Services,SME,Programme Expenditure
UK Statistics Family,Office for National Statistics,24/11/2021,Exp - Purchase Of Goods/Services - Contractors,IT Applications,La International,215447,"9,162.36",Information Management Services,SME,Programme Expenditure
UK Statistics Family,Office for National Statistics,24/11/2021,Exp - Purchase Of Goods/Services - Contractors,IT Operations,La International,215447,"23,067.72",Information Management Services,SME,Programme Expenditure
UK Statistics Family,Office for National Statistics,24/11/2021,Exp - Short-Term Contract & Agency Staff - Full Cost,Office Of Chief Data And Information,La International,215447,"1,215.00",Information Management Services,SME,Programme Expenditure
UK Statistics Family,Office for National Statistics,24/11/2021,Print & Post,Ask Business Services,APS Group,215450,"5,550.38",Print and Post Services,Large,Programme Expenditure
UK Statistics Family,Office for National Statistics,24/11/2021,Print & Post,Social Survey Transformation Newport,APS Group,215450,"106,378.27",Print and Post Services,Large,Programme Expenditure
UK Statistics Family,Office for National Statistics,24/11/2021,Print & Post,Social Surveys Division,APS Group,215450,"1,005.72",Print and Post Services,Large,Programme Expenditure
UK Statistics Family,Office for National Statistics,24/11/2021,Hosting,CLOUD ARCHITECTURE,Amazon Web Services Inc,215456,"126,407.49",Information Management Services,Large,Programme Expenditure
UK Statistics Family,Office for National Statistics,24/11/2021,Hosting,IT Operations,Amazon Web Services Inc,215456,"38,354.96",Information Management Services,Large,Programme Expenditure
UK Statistics Family,Office for National Statistics,24/11/2021,Exp - Purchase Of Goods And Services Consultants,Digital Publishing,Methods Business & Digital Technology Ltd,215457,"171,000.00",Information Management Services,Large,Programme Expenditure
UK Statistics Family,Office for National Statistics,24/11/2021,Exp - Purchase Of Goods/Services - IT Contractual Services,Digital Delivery,Methods Business & Digital Technology Ltd,215457,"168,852.00",Information Management Services,Large,Programme Expenditure
UK Statistics Family,Office for National Statistics,24/11/2021,Other Goods And Services,Expansion Programme,Totaljobs Group Ltd,215458,"25,200.00",Advertising and Marketing,SME,Programme Expenditure
UK Statistics Family,Office for National Statistics,24/11/2021,Exp - Purchase Of Goods/Services - Contractors,Digital Publishing,Talent International,215459,"16,800.00",Information Management Services,SME,Programme Expenditure
UK Statistics Family,Office for National Statistics,24/11/2021,Exp - Short-Term Contract & Agency Staff - Full Cost,Strategy And Engagement,Talent International,215459,"2,161.39",Information Management Services,SME,Programme Expenditure
UK Statistics Family,Office for National Statistics,24/11/2021,Exp - Short-Term Contract & Agency Staff - Full Cost,Data Architecture,Talent International,215459,"1,504.28",Information Management Services,SME,Programme Expenditure
UK Statistics Family,Office for National Statistics,24/11/2021,Exp - Purchase Of Goods/Services - Contractors,Tech Delivery Next Gen IT And Infrastructure,Talent International,215459,"6,000.00",Information Management Services,SME,Programme Expenditure
UK Statistics Family,Office for National Statistics,24/11/2021,Exp - Short-Term Contract & Agency Staff - Full Cost,Interviewer Management TU,Talent International,215459,7.92,Information Management Services,SME,Programme Expenditure
UK Statistics Family,Office for National Statistics,24/11/2021,Exp - Short-Term Contract & Agency Staff - Full Cost,Social Surveys Division,Talent International,215459,"2,508.59",Information Management Services,SME,Programme Expenditure
UK Statistics Family,Office for National Statistics,24/11/2021,Rent Payable,Property London,Tandem Property Asset Management LLP,215461,"243,432.00",Property Rental,Large,Programme Expenditure
UK Statistics Family,Office for National Statistics,24/11/2021,Exp - Purchase Of Goods/Services - Contractors,Data Capability,Parity Resources Limited,215462,"13,193.92",Information Management Services,Large,Programme Expenditure
UK Statistics Family,Office for National Statistics,24/11/2021,Exp - Purchase Of Goods/Services - Contractors,Business Architecture,Parity Resources Limited,215462,"3,600.00",Information Management Services,Large,Programme Expenditure
UK Statistics Family,Office for National Statistics,24/11/2021,Exp - Purchase Of Goods/Services - Contractors,Testing,Parity Resources Limited,215462,"3,600.00",Information Management Services,Large,Programme Expenditure
UK Statistics Family,Office for National Statistics,24/11/2021,Exp - Purchase Of Goods/Services - Contractors,Policy and Design,Parity Resources Limited,215462,"10,800.00",Information Management Services,Large,Programme Expenditure
UK Statistics Family,Office for National Statistics,24/11/2021,Exp - Purchase Of Goods/Services - Contractors,Digital Publishing,Parity Resources Limited,215462,"3,550.50",Information Management Services,Large,Programme Expenditure
UK Statistics Family,Office for National Statistics,24/11/2021,Exp - Short-Term Contract & Agency Staff - Full Cost,Productivity Research And Professional Development,Parity Resources Limited,215462,"6,101.40",Information Management Services,Large,Programme Expenditure
UK Statistics Family,Office for National Statistics,24/11/2021,Exp - Purchase Of Goods/Services - Contractors,Productivity Research And Professional Development,Parity Resources Limited,215462,"2,880.00",Information Management Services,Large,Programme Expenditure
UK Statistics Family,Office for National Statistics,24/11/2021,Exp - Purchase Of Goods/Services - Contractors,Analysis Microdata And Engagement,Parity Resources Limited,215462,"4,440.67",Information Management Services,Large,Programme Expenditure
UK Statistics Family,Office for National Statistics,24/11/2021,Exp - Short-Term Contract & Agency Staff - Full Cost,Business Architecture Transformation And Statistical Strategy,Parity Resources Limited,215462,"-2,002.44",Information Management Services,Large,Programme Expenditure
UK Statistics Family,Office for National Statistics,24/11/2021,Exp - Short-Term Contract & Agency Staff - Full Cost,Recruitment ,Parity Resources Limited,215462,699.94,Information Management Services,Large,Programme Expenditure
UK Statistics Family,Office for National Statistics,24/11/2021,Exp - Short-Term Contract & Agency Staff - Full Cost,Data Architecture,Parity Resources Limited,215462,"3,564.00",Information Management Services,Large,Programme Expenditure
UK Statistics Family,Office for National Statistics,24/11/2021,Exp - Purchase Of Goods/Services - Contractors,Strategy And Architecture,Parity Resources Limited,215462,"9,021.00",Information Management Services,Large,Programme Expenditure
UK Statistics Family,Office for National Statistics,24/11/2021,Exp - Purchase Of Goods/Services - Contractors,Tech Delivery Legacy Sp,Parity Resources Limited,215462,"4,600.50",Information Management Services,Large,Programme Expenditure
UK Statistics Family,Office for National Statistics,24/11/2021,Exp - Purchase Of Goods/Services - Contractors,IT Operations,Parity Resources Limited,215462,"20,334.60",Information Management Services,Large,Programme Expenditure
UK Statistics Family,Office for National Statistics,24/11/2021,Exp - Purchase Of Goods/Services - Contractors,Digital Delivery,Parity Resources Limited,215462,"3,870.00",Information Management Services,Large,Programme Expenditure
UK Statistics Family,Office for National Statistics,24/11/2021,EXP - PURCHASE OF GOODS/SERVICES -  NON IT CONTRACTUAL PAYMENTS,People Solutions,Cabinet Office,215463,"251,724.00",Security Vetting Services,Large,Programme Expenditure
UK Statistics Family,Office for National Statistics,24/11/2021,Exp - Seconded UK Staff - Basic Salary,FAST STREAM RECHARGES - CABINET OFFICE,Cabinet Office,215463,"14,350.00",Fast Stream Programme Charges,Large,Programme Expenditure
UK Statistics Family,Office for National Statistics,24/11/2021,Accommodation & Building Management,Property Newport,Government Property Agency (GPA),215465,"3,180.00",Property Rental,Large,Programme Expenditure
UK Statistics Family,Office for National Statistics,24/11/2021,Rent Payable,Property Newport,Government Property Agency (GPA),215465,"385,434.00",Property Rental,Large,Programme Expenditure
UK Statistics Family,Office for National Statistics,24/11/2021,Accommodation & Building Management,Property Titchfield,Government Property Agency (GPA),215465,"3,180.00",Property Rental,Large,Programme Expenditure
UK Statistics Family,Office for National Statistics,24/11/2021,Rent Payable,Property Titchfield,Government Property Agency (GPA),215465,"351,015.00",Property Rental,Large,Programme Expenditure
UK Statistics Family,Office for National Statistics,24/11/2021,Accommodation & Building Management,Property Christchurch,Government Property Agency (GPA),215465,"3,180.00",Property Rental,Large,Programme Expenditure
UK Statistics Family,Office for National Statistics,24/11/2021,Rent Payable,Property Christchurch,Government Property Agency (GPA),215465,"51,975.00",Property Rental,Large,Programme Expenditure
UK Statistics Family,Office for National Statistics,25/11/2021,End User Software And Hardware,IT Operations,Phoenix Software Ltd,215470,"46,722.00",Software Licenses,SME,Programme Expenditure
UK Statistics Family,Office for National Statistics,25/11/2021,Exp - Purchase Of Goods/Services - Contractors,Business Architecture,Talent International,215475,"17,912.91",Information Management Services,SME,Programme Expenditure
UK Statistics Family,Office for National Statistics,25/11/2021,Exp - Short-Term Contract & Agency Staff - Full Cost,Covid Infection Survey,Talent International,215475,"3,166.02",Information Management Services,SME,Programme Expenditure
UK Statistics Family,Office for National Statistics,25/11/2021,Exp - Purchase Of Goods And Services Consultants,Business Architecture Transformation And Statistical Strategy,Talent International,215475,"15,840.00",Information Management Services,SME,Programme Expenditure
UK Statistics Family,Office for National Statistics,25/11/2021,Exp - Short-Term Contract & Agency Staff - Full Cost,Data Architecture,Talent International,215475,"1,504.28",Information Management Services,SME,Programme Expenditure
UK Statistics Family,Office for National Statistics,25/11/2021,Exp - Short-Term Contract & Agency Staff - Full Cost,Social Surveys Division,Talent International,215475,"2,880.18",Information Management Services,SME,Programme Expenditure
UK Statistics Family,Office for National Statistics,25/11/2021,Specialist User Software And Hardware,CDIO UNGP,denodo,215477,"195,550.94",Software Licenses,SME,Programme Expenditure
UK Statistics Family,Office for National Statistics,26/11/2021,Exp - Purchase Of Goods/Services - Contractors,Digital Publishing,Certes Computing Ltd,215641,"35,996.40",Information Management Services,SME,Programme Expenditure
UK Statistics Family,Office for National Statistics,26/11/2021,Exp - Purchase Of Goods/Services - Contractors,Security And Information Management Saim,Certes Computing Ltd,215641,"19,983.74",Information Management Services,SME,Programme Expenditure
UK Statistics Family,Office for National Statistics,26/11/2021,Exp - Purchase Of Goods/Services - Contractors,Strategy And Architecture,Certes Computing Ltd,215641,"13,500.00",Information Management Services,SME,Programme Expenditure
UK Statistics Family,Office for National Statistics,26/11/2021,Exp - Purchase Of Goods/Services - Contractors,Strategy And Architecture,Certes Computing Ltd,215641,"17,485.78",Information Management Services,SME,Programme Expenditure
UK Statistics Family,Office for National Statistics,26/11/2021,Exp - Purchase Of Goods/Services - Contractors,Tech Delivery Data As A Platform,Certes Computing Ltd,215641,"53,289.98",Information Management Services,SME,Programme Expenditure
UK Statistics Family,Office for National Statistics,01/11/2021,Surveys,Covid Infection Survey,IQVIA Limited,30003076,"4,285,892.26",Statistical Services,Large,Programme Expenditure
UK Statistics Family,Office for National Statistics,01/11/2021,Exp - Purchase Of Goods/Services - Incentive Payments,Covid Infection Survey,Sodexo Motivation Solutions U.K. ltd,30003077,"57,477.97",Survey Response Incentive Vouchers,Large,Programme Expenditure
UK Statistics Family,Office for National Statistics,04/11/2021,Exp - Purchase Of Goods/Services - Incentive Payments,Covid Infection Survey,Sodexo Motivation Solutions U.K. ltd,30003080,"1,770,708.22",Survey Response Incentive Vouchers,Large,Programme Expenditure
UK Statistics Family,Office for National Statistics,04/11/2021,Exp - Purchase Of Goods/Services - Incentive Payments,Covid Infection Survey,Sodexo Motivation Solutions U.K. ltd,30003081,"787,817.60",Survey Response Incentive Vouchers,Large,Programme Expenditure
UK Statistics Family,Office for National Statistics,15/11/2021,Surveys,Covid Infection Survey,IQVIA Limited,30003084,"34,515.87",Statistical Services,Large,Programme Expenditure
UK Statistics Family,Office for National Statistics,15/11/2021,Exp - Purchase Of Goods/Services - Incentive Payments,Covid Infection Survey,Sodexo Motivation Solutions U.K. ltd,30003085,"2,310,690.06",Survey Response Incentive Vouchers,Large,Programme Expenditure
UK Statistics Family,Office for National Statistics,17/11/2021,Exp - Purchase Of Goods/Services - Incentive Payments,Covid Infection Survey,Sodexo Motivation Solutions U.K. ltd,30003089,"58,219.20",Survey Response Incentive Vouchers,Large,Programme Expenditure
UK Statistics Family,Office for National Statistics,18/11/2021,Exp - Purchase Of Goods And Services Consultants,Overseas Development,Delphic Consultancy Limited,30003091,"28,920.00",Consultancy,SME,Programme Expenditure
UK Statistics Family,Office for National Statistics,18/11/2021,Exp - Purchase Of Goods/Services - Incentive Payments,Covid Infection Survey,Sodexo Motivation Solutions U.K. ltd,30003092,"2,136,465.79",Survey Response Incentive Vouchers,Large,Programme Expenditure
UK Statistics Family,Office for National Statistics,22/11/2021,Exp - Purchase Of Goods/Services - Incentive Payments,Covid Infection Survey,Sodexo Motivation Solutions U.K. ltd,30003098,"137,301.14",Survey Response Incentive Vouchers,Large,Programme Expenditure
UK Statistics Family,Office for National Statistics,24/11/2021,Surveys,Covid Infection Survey,IQVIA Limited,30003101,"21,120,000.00",Statistical Services,Large,Programme Expenditure
UK Statistics Family,Office for National Statistics,24/11/2021,Training & Development,Business Statistics Transformation,Nielsen Norman Group,30003102,"16,893.94",Training and Educational Services,SME,Programme Expenditure
UK Statistics Family,Office for National Statistics,24/11/2021,Training & Development,Social Survey Transformation Newport,Nielsen Norman Group,30003102,"28,311.27",Training and Educational Services,SME,Programme Expenditure
UK Statistics Family,Office for National Statistics,26/11/2021,Exp - Purchase Of Goods/Services - Incentive Payments,Covid Infection Survey,Sodexo Motivation Solutions U.K. ltd,30003108,"2,405,962.86",Survey Response Incentive Vouchers,Large,Programme Expenditure
UK Statistics Family,Office for National Statistics,30/11/2021,"ICT Outsourcing, Maintenance And Support",Covid Infection Survey,Equiniti Limited,30003112,"48,851.37",Information Management Services,Large,Programme Expenditure
UK Statistics Family,Office for National Statistics,30/11/2021,"ICT Outsourcing, Maintenance And Support",Researcher Support And Data Access ,Equiniti Limited,30003112,"128,972.82",Information Management Services,Large,Programme Expenditure
UK Statistics Family,Office for National Statistics,30/11/2021,Hosting,IT Operations,Equiniti Limited,30003112,"42,534.79",Information Management Services,Large,Programme Expenditure
UK Statistics Family,Office for National Statistics,30/11/2021,"ICT Outsourcing, Maintenance And Support",Covid Infection Survey,Equiniti Limited,30003113,"14,549.84",Information Management Services,Large,Programme Expenditure
UK Statistics Family,Office for National Statistics,30/11/2021,"ICT Outsourcing, Maintenance And Support",Researcher Support And Data Access ,Equiniti Limited,30003113,"154,767.39",Information Management Services,Large,Programme Expenditure
UK Statistics Family,Office for National Statistics,30/11/2021,Hosting,IT Operations,Equiniti Limited,30003113,"51,041.75",Information Management Services,Large,Programme Expenditure
UK Statistics Family,Office for National Statistics,30/11/2021,Exp - Purchase Of Goods/Services - IT Contractual Services,CDIO UNGP,Amazon Web Services Inc,30003114,"51,720.58",Information Management Services,Large,Programme Expenditure
UK Statistics Family,Office for National Statistics,30/11/2021,Telecoms,IT Operations,Bt Global Services,30003115,"48,786.68",Telecommunications,Large,Programme Expenditure
UK Statistics Family,Office for National Statistics,30/11/2021,Exp - Short-Term Contract & Agency Staff - Full Cost,Covid Infection Survey,Concept Information Technology Ltd T/A Concept Resourcing,30003117,"5,430.24",Information Management Services,Large,Programme Expenditure
UK Statistics Family,Office for National Statistics,30/11/2021,Exp - Short-Term Contract & Agency Staff - Full Cost,Covid Infection Survey,Concept Information Technology Ltd T/A Concept Resourcing,30003117,"4,332.25",Information Management Services,Large,Programme Expenditure
UK Statistics Family,Office for National Statistics,30/11/2021,Exp - Short-Term Contract & Agency Staff - Full Cost,Business Change Support,Concept Information Technology Ltd T/A Concept Resourcing,30003117,"4,736.32",Information Management Services,Large,Programme Expenditure
UK Statistics Family,Office for National Statistics,30/11/2021,Exp - Short-Term Contract & Agency Staff - Full Cost,Productivity Research And Professional Development,Concept Information Technology Ltd T/A Concept Resourcing,30003117,"3,920.52",Information Management Services,Large,Programme Expenditure
UK Statistics Family,Office for National Statistics,30/11/2021,Exp - Short-Term Contract & Agency Staff - Full Cost,Strategy And Engagement,Concept Information Technology Ltd T/A Concept Resourcing,30003117,"2,678.45",Information Management Services,Large,Programme Expenditure
UK Statistics Family,Office for National Statistics,30/11/2021,Exp - Purchase Of Goods/Services - Contractors,Census & Soc Methodology Dd,Concept Information Technology Ltd T/A Concept Resourcing,30003117,"13,344.07",Information Management Services,Large,Programme Expenditure
UK Statistics Family,Office for National Statistics,30/11/2021,Exp - Purchase Of Goods/Services - Contractors,Data Architecture,Concept Information Technology Ltd T/A Concept Resourcing,30003117,"8,349.98",Information Management Services,Large,Programme Expenditure
UK Statistics Family,Office for National Statistics,30/11/2021,Exp - Purchase Of Goods/Services - IT Contractual Services,Tech Delivery Legacy Sp,Concept Information Technology Ltd T/A Concept Resourcing,30003117,"11,460.00",Information Management Services,Large,Programme Expenditure
UK Statistics Family,Office for National Statistics,30/11/2021,Exp - Short-Term Contract & Agency Staff - Full Cost,Public Sector And Households,Concept Information Technology Ltd T/A Concept Resourcing,30003117,823.7,Information Management Services,Large,Programme Expenditure
UK Statistics Family,Office for National Statistics,30/11/2021,Exp - Short-Term Contract & Agency Staff - Full Cost,Public Sector And Households,Concept Information Technology Ltd T/A Concept Resourcing,30003117,"2,849.60",Information Management Services,Large,Programme Expenditure
UK Statistics Family,Office for National Statistics,30/11/2021,Exp - Short-Term Contract & Agency Staff - Full Cost,Business Outputs And Developments,Concept Information Technology Ltd T/A Concept Resourcing,30003117,"4,736.33",Information Management Services,Large,Programme Expenditure
UK Statistics Family,Office for National Statistics,30/11/2021,Exp - Purchase Of Goods/Services - Contractors,Business Architecture,Parity Resources Limited,30003119,"4,198.76",Information Management Services,Large,Programme Expenditure
UK Statistics Family,Office for National Statistics,30/11/2021,Exp - Purchase Of Goods/Services - Contractors,Covid Infection Survey,Parity Resources Limited,30003119,"2,993.80",Information Management Services,Large,Programme Expenditure
UK Statistics Family,Office for National Statistics,30/11/2021,Exp - Purchase Of Goods/Services - Contractors,Policy and Design,Parity Resources Limited,30003119,"3,600.00",Information Management Services,Large,Programme Expenditure
UK Statistics Family,Office for National Statistics,30/11/2021,Exp - Purchase Of Goods/Services - Contractors,Digital Publishing,Parity Resources Limited,30003119,"7,101.00",Information Management Services,Large,Programme Expenditure
UK Statistics Family,Office for National Statistics,30/11/2021,Exp - Purchase Of Goods/Services - Contractors,Digital Publishing,Parity Resources Limited,30003119,"3,490.20",Information Management Services,Large,Programme Expenditure
UK Statistics Family,Office for National Statistics,30/11/2021,Exp - Short-Term Contract & Agency Staff - Full Cost,Business Architecture Transformation And Statistical Strategy,Parity Resources Limited,30003119,"6,621.00",Information Management Services,Large,Programme Expenditure
UK Statistics Family,Office for National Statistics,30/11/2021,Exp - Short-Term Contract & Agency Staff - Full Cost,Business Architecture Transformation And Statistical Strategy,Parity Resources Limited,30003119,"1,292.93",Information Management Services,Large,Programme Expenditure
UK Statistics Family,Office for National Statistics,30/11/2021,Exp - Purchase Of Goods/Services - Contractors,Security Advisory,Parity Resources Limited,30003119,"7,176.96",Information Management Services,Large,Programme Expenditure
UK Statistics Family,Office for National Statistics,30/11/2021,Exp - Short-Term Contract & Agency Staff - Full Cost,Data Architecture,Parity Resources Limited,30003119,"3,524.40",Information Management Services,Large,Programme Expenditure
UK Statistics Family,Office for National Statistics,30/11/2021,Exp - Purchase Of Goods/Services - Contractors,CLOUD ARCHITECTURE,Parity Resources Limited,30003119,"6,174.90",Information Management Services,Large,Programme Expenditure
UK Statistics Family,Office for National Statistics,30/11/2021,Exp - Purchase Of Goods/Services - Contractors,Strategy And Architecture,Parity Resources Limited,30003119,"4,510.50",Information Management Services,Large,Programme Expenditure
UK Statistics Family,Office for National Statistics,30/11/2021,Exp - Purchase Of Goods/Services - Contractors,IT Applications,Parity Resources Limited,30003119,"12,534.30",Information Management Services,Large,Programme Expenditure
UK Statistics Family,Office for National Statistics,30/11/2021,Exp - Purchase Of Goods/Services - Contractors,IT Operations,Parity Resources Limited,30003119,"29,761.44",Information Management Services,Large,Programme Expenditure
UK Statistics Family,Office for National Statistics,30/11/2021,Exp - Purchase Of Goods/Services - Contractors,Digital Delivery,Parity Resources Limited,30003119,"3,870.00",Information Management Services,Large,Programme Expenditure
UK Statistics Family,Office for National Statistics,30/11/2021,Exp - Purchase Of Goods/Services - Contractors,Data Science Campus,Parity Resources Limited,30003119,"5,958.90",Information Management Services,Large,Programme Expenditure
UK Statistics Family,Office for National Statistics,12/11/2021,Other Goods And Services,Policy Secretariat,OECD,90001046,"28,853.78",Contribution to the OECD to allow them to accelerate or focus on work which is deemed a priority by the UK,Large,Programme Expenditure
UK Statistics Family,Office for National Statistics,12/11/2021,End User Software And Hardware,IT Operations,Cbs Netherlands - Central Bureau Voor Do Statistiek,90001047,"223,573.35",Software Licenses,Large,Programme Expenditure
,,,,,,,"54,710,294.76",,,
